{"text_format":"1","workbook":"xlsx","n_sheets":13,"sheets":["表紙","入力１","入力２","入力３","入力４","計画書","報告書","説明２","コード","作業表","計算表","作業表２","計算表２"],"not_rendered":{"charts":0,"images":19,"macros":1,"external_links":1,"defined_names":11,"comments":0,"pivot_tables":0},"unopened":[],"bounds":{"document_bytes":16777216,"sheet_cells":100000,"rows_first":2000,"rows_last":500,"rows_between":2000,"halvings":0,"cell_chars":16384,"cell_head_chars":4096},"cells_cut":0,"cells_raw":0,"read":"whole","date_system":"1900"}

{"sheet":"表紙","index":0,"n_rows":28,"n_cols":22,"rows_kept":28,"cut":false,"hidden":false,"merged":[]}
[]
[]
[]
[]
[]
[]
[]
[]
[]
[]
[]
[]
[]
[]
[]
[]
[]
[]
[]
[null,null,null,"入力項目は",null,null,"　の部分です。"]
[]
[null,null,"　　　入力する項目は、①提出情報（提出者の氏名、住所、連絡先等）、②基本情報（使用している井戸に関する情報）、","入力する項目は、①提出情報（提出者の氏名、住所、連絡先等）、②基本情報（使用している井戸に関する情報）、"]
[null,null,"　　　③涵養の方策（どんな涵養対策に取り組んでいるか）です。","③涵養の方策（どんな涵養対策に取り組んでいるか）です。"]
[null,null,"　　　それぞれのボタンを押して、入力画面に移動して下さい。","それぞれのボタンを押して、入力画面に移動して下さい。"]
[null,null,"　　　「涵養の方策」入力画面では、対策を実施している項目について、取組内容、数量、涵養量等を入力して下さい。","「涵養の方策」入力画面では、対策を実施している項目について、取組内容、数量、涵養量等を入力して下さい。"]
[null,null,"　　　「実施状況報告書」は、入力した計画の内容を引用することもできます。","「実施状況報告書」は、入力した計画の内容を引用することもできます。"]
[]
[null,null,null,null,null,null,null,null,null,null,null,null,null,null,null,null,null,null,null,null,null,"Ver.14-01-00"]

{"sheet":"入力１","index":1,"n_rows":15,"n_cols":33,"rows_kept":15,"cut":false,"hidden":false,"merged":[[3,2,4,32],[7,22,7,31],[8,32,9,32],[8,2,9,7],[6,2,6,7],[8,17,9,31],[8,14,8,16],[9,14,9,15],[9,11,9,12],[8,11,8,13],[8,8,8,10],[9,8,9,9],[7,8,7,9],[7,2,7,7],[6,8,6,31],[13,4,13,7],[10,8,10,31],[11,8,11,31],[13,8,13,31],[14,8,14,31],[14,2,14,7],[10,2,13,3],[12,8,12,31],[10,4,10,7],[11,4,11,7],[12,4,12,7]]}
[]
[]
[]
[null,null,"①　提出情報入力"]
[]
[]
[null,null,"入力項目",null,null,null,null,null,"入力欄",null,null,null,null,null,null,null,null,null,null,null,null,null,null,null,null,null,null,null,null,null,null,null,"入力項目の説明（記入例）"]
[null,null,"提出様式",null,null,null,null,null,{"$f":"作業表!E5","v":"09"},null,null,null,null,null,null,null,null,null,null,null,null,null,null,null,null,null,null,null,null,null,null,null,"▼をクリックして該当する \"様式\" を選択してください。"]
[null,null,"提出年月日",null,null,null,null,null,"年",null,null,"月",null,null,"日",null,null,{"$f":"\"平成\"&I10&\"年\"&L10&\"月\"&O10&\"日\"","v":"平成26年4月1日"},null,null,null,null,null,null,null,null,null,null,null,null,null,null,"   を操作して日付を設定してください。\n(年、月、日の直接入力も可能です。)"]
[null,null,null,null,null,null,null,null,26,null,null,4,null,null,1]
[null,null,"提出者",null,"氏　　　名",null,null,null,null,null,null,null,null,null,null,null,null,null,null,null,null,null,null,null,null,null,null,null,null,null,null,null,"株式会社＊＊　熊本支社　支社長　＊＊＊＊　（代表者名まで）"]
[null,null,null,null,"郵便番号",null,null,null,null,null,null,null,null,null,null,null,null,null,null,null,null,null,null,null,null,null,null,null,null,null,null,null,"860-0000"]
[null,null,null,null,"住　　　所",null,null,null,null,null,null,null,null,null,null,null,null,null,null,null,null,null,null,null,null,null,null,null,null,null,null,null,"熊本市中央区＊＊＊＊\n上益城郡益城町＊＊＊＊"]
[null,null,null,null,"電話番号",null,null,null,null,null,null,null,null,null,null,null,null,null,null,null,null,null,null,null,null,null,null,null,null,null,null,null,"096-999-0000"]
[null,null,"担　当　者　名",null,null,null,null,null,null,null,null,null,null,null,null,null,null,null,null,null,null,null,null,null,null,null,null,null,null,null,null,null,"担当者名を入力してください。"]

{"sheet":"入力２","index":2,"n_rows":16,"n_cols":33,"rows_kept":16,"cut":false,"hidden":false,"merged":[[3,2,4,32],[6,2,6,7],[6,8,6,31],[7,2,7,7],[15,2,15,7],[14,8,14,12],[14,2,14,7],[15,8,15,9],[9,8,9,14],[11,8,11,14],[14,13,14,14],[13,8,13,14],[12,8,12,14],[9,2,13,6],[10,8,10,14],[8,2,8,7],[7,8,7,31],[8,15,8,31],[8,13,8,14],[8,8,8,12],[15,16,15,20],[15,21,15,31],[9,32,13,32],[13,15,13,31],[14,15,14,31],[12,15,12,31],[9,15,9,31],[10,15,10,31],[11,15,11,31]]}
[]
[]
[]
[null,null,"②　基本情報入力"]
[]
[]
[null,null,"入力項目",null,null,null,null,null,"入力欄",null,null,null,null,null,null,null,null,null,null,null,null,null,null,null,null,null,null,null,null,null,null,null,"入力項目の説明（記入例）"]
[null,null,"揚水設備設置場所",null,null,null,null,null,null,null,null,null,null,null,null,null,null,null,null,null,null,null,null,null,null,null,null,null,null,null,null,null,"「熊本市＊＊＊＊＊」　「下益城郡＊＊＊＊」\n事業所内に複数の井戸がある場合は、「･･･他」と入力してください。"]
[null,null,"年間採取量",null,null,null,null,null,null,null,null,null,null,"㎥",null,null,null,null,null,null,null,null,null,null,null,null,null,null,null,null,null,null,"整数で入力してください。"]
[null,null,"井戸番号",null,null,null,null,"①",null,null,null,null,null,null,null,null,null,null,null,null,null,null,null,null,null,null,null,null,null,null,null,null,"所有する井戸番号を入力してください。（５本まで入力可）\n\n（事業所内に複数の井戸がある場合は、届出井戸も含めて入力して下さい。）"]
[null,null,null,null,null,null,null,"②"]
[null,null,null,null,null,null,null,"③"]
[null,null,null,null,null,null,null,"④"]
[null,null,null,null,null,null,null,"⑤"]
[null,null,"井戸の本数",null,null,null,null,null,null,null,null,null,null,"本",null,null,null,null,null,null,null,null,null,null,null,null,null,null,null,null,null,null,"上記の井戸の合計数を入力してください。"]
[null,null,"地下水の用途",null,null,null,null,null,{"$f":"作業表!E6","v":" "},null,"その他",null,null,null,null,null,"その他の内容",null,null,null,null,null,null,null,null,null,null,null,null,null,null,null,"▼をクリックして該当する \"用途\" を選択してください。\nその他を選択した場合は内容を入力してください。"]

{"sheet":"入力３","index":3,"n_rows":76,"n_cols":12,"rows_kept":76,"cut":false,"hidden":false,"merged":[[5,1,31,1],[31,2,31,8],[25,9,25,10],[13,9,13,10],[9,9,9,10],[14,6,14,8],[10,6,10,8],[12,9,12,10],[26,9,26,10],[21,2,23,2],[24,2,28,2],[15,9,15,10],[5,3,10,5],[11,3,14,5],[15,3,16,5],[17,3,20,5],[24,3,28,5],[21,3,23,5],[27,9,27,10],[11,9,11,10],[17,9,17,10],[21,7,21,8],[18,9,18,10],[20,6,20,8],[19,9,19,10],[23,6,23,8],[4,9,4,10],[4,2,4,8],[5,2,10,2],[11,2,14,2],[28,6,28,8],[42,9,42,10],[43,9,43,10],[29,4,29,8],[30,4,30,8],[51,9,51,10],[57,9,57,10],[2,1,2,11],[72,11,73,11],[21,9,21,10],[22,9,22,10],[24,9,24,10],[34,9,34,10],[35,9,35,10],[32,9,32,10],[39,9,39,10],[36,9,36,10],[65,1,65,8],[17,2,20,2],[16,6,16,8],[5,9,5,10],[6,9,6,10],[7,9,7,10],[8,9,8,10],[15,2,16,2],[33,9,33,10],[37,9,37,10],[38,9,38,10],[41,2,44,2],[46,9,46,10],[47,9,47,10],[41,9,41,10],[45,9,45,10],[32,2,40,2],[38,7,38,8],[37,7,37,8],[41,3,44,5],[32,3,40,5],[36,7,36,8],[35,7,35,8],[44,6,44,8],[54,2,59,2],[51,2,53,2],[55,7,55,8],[58,6,58,8],[51,3,53,5],[54,3,59,5],[46,3,47,4],[45,2,48,2],[48,6,48,8],[32,1,50,1],[40,6,40,8],[67,1,67,8],[70,1,70,8],[72,1,73,2],[73,3,73,10],[72,3,72,10],[60,9,60,10],[61,9,61,10],[52,9,52,10],[51,7,51,8],[51,1,64,1],[60,2,63,2],[64,2,64,8],[63,6,63,8],[59,6,59,8],[62,6,62,8],[56,9,56,10],[53,9,53,10],[54,9,54,10],[55,9,55,10],[60,3,63,5],[50,2,50,8],[49,6,49,8]]}
[]
[]
[null,"③　項目及び内容入力（地下水涵養計画書）"]
[]
[null,"涵養の方策","項目及び内容",null,null,null,null,null,null,"涵養計画量",null,"入力項目の説明（入力例）"]
[null,"敷地内における涵養\n（雨水の地下浸透）　　　\n①",1,"雨水浸透ます",null,null,"設置基数",null,"基",null,null,"設置基数を入力してください。"]
[null,null,null,null,null,null,"内径",null,"㎝",null,null,"内径（㎝）を入力してください。"]
[null,null,null,null,null,null,"深さ",null,"㎝",null,null,"深さ（㎝）を入力してください。"]
[null,null,null,null,null,null,"屋根面積",null,"㎡",null,null,"屋根面積（㎥）を入力してください。"]
[null,null,null,null,null,null,"種類",null,null,null,null,"雨水浸透ますの種類を選択してください。"]
[null,null,null,null,null,null,null,null,null,{"$f":"計算表!D2","v":""},"㎥／年","　※入力された内容から自動計算します。"]
[null,null,2,"雨水浸透トレンチ",null,null,"内径",null,"㎝",null,null,"内径（㎝）を入力してください。"]
[null,null,null,null,null,null,"長さ",null,"ｍ",null,null,"長さ（ｍ）を入力してください。"]
[null,null,null,null,null,null,"敷地面積",null,"㎡",null,null,"集水面積（敷地面積等）（㎥）を入力してください。"]
[null,null,null,null,null,null,null,null,null,{"$f":"計算表!D4","v":""},"㎥／年","　※入力された内容から自動計算します。"]
[null,null,3,"透水性舗装　又は\n緑化ブロック",null,null,"面積",null,"㎡",null,null,"面積（㎥）を入力してください。"]
[null,null,null,null,null,null,null,null,null,{"$f":"計算表!D6","v":""},"㎥／年","　※入力された内容から自動計算します。"]
[null,null,4,"雨水浸透側溝",null,null,"深さ",null,"ｍ",null,null,"深さ（ｍ）を入力してください。"]
[null,null,null,null,null,null,"長さ",null,"ｍ",null,null,"長さ（ｍ）を入力してください。"]
[null,null,null,null,null,null,"敷地面積",null,"㎡",null,null,"集水面積（敷地面積等）（㎥）を入力してください。"]
[null,null,null,null,null,null,null,null,null,{"$f":"計算表!D8","v":""},"㎥／年","　※入力された内容から自動計算します。"]
[null,null,5,"緑地等",null,null,"形態",null,null,null,null,"形態（芝生、植栽等）を入力してください。\n(１０文字程度)"]
[null,null,null,null,null,null,"面積",null,"㎡",null,null,"設置面積（㎥）を入力してください。"]
[null,null,null,null,null,null,null,null,null,{"$f":"計算表!D10","v":""},"㎥／年","　※入力された内容から自動計算します。"]
[null,null,6,"浸透型調整池",null,null,"縦",null,"ｍ",null,null,"縦の長さ（ｍ）を入力してください。"]
[null,null,null,null,null,null,"横",null,"ｍ",null,null,"横の長さ（ｍ）を入力してください。"]
[null,null,null,null,null,null,"深さ",null,"ｍ",null,null,"深さ（ｍ）を入力してください。"]
[null,null,null,null,null,null,"集水面積",null,"㎡",null,null,"集水面積（敷地面積等）（㎥）を入力してください。"]
[null,null,null,null,null,null,null,null,null,{"$f":"計算表!D12","v":""},"㎥／年","　※入力された内容から自動計算します。"]
[null,null,7,"その他",null,null,null,null,null,null,"㎥／年","具体的な内容があれば入力してください。\n(４０文字程度)\n涵養計画量を入力してください。"]
[null,null,8,"その他",null,null,null,null,null,null,"㎥／年","具体的な内容があれば入力してください。\n(４０文字程度)\n涵養計画量を入力してください。"]
[null,null,"小計　①",null,null,null,null,null,null,{"$f":"計算表!D18","v":""},"㎥／年","　※入力された内容から自動計算します。"]
[null,"敷地外における涵養\n②",9,"涵養林の整備",null,null,"整備の種類",null,null,null,null,"涵養林整備の種類を選択してください。"]
[null,null,null,null,null,null,"地域名",null,null,null,null,"植林場所が該当する地域名を選択してください。"]
[null,null,null,null,null,null,"植林年度",null,"年度",null,null,"植林年度を入力してください。"]
[null,null,null,null,null,null,"植林場所",null,null,null,null,"植林場所(市町村)を入力してください。(１０文字程度)"]
[null,null,null,null,null,null,"樹種",null,null,null,null,"樹種を入力してください。(１０文字程度)"]
[null,null,null,null,null,null,"取組の内容",null,null,null,null,"取組の内容を入力してください。(１０文字程度)"]
[null,null,null,null,null,null,"今後の計画",null,null,null,null,"今後の計画を入力してください。(１０文字程度)"]
[null,null,null,null,null,null,"植林面積",null,"㎡",null,null,"植林面積（㎥）を入力してください。"]
[null,null,null,null,null,null,null,null,null,{"$f":"計算表!D20","v":""},"㎥／年","　※入力された内容から自動計算します。"]
[null,null,10,"水田湛水",null,null,"地域名",null,null,null,null,"水田湛水を実施している地域名を選択してください。"]
[null,null,null,null,null,null,"期間",null,"月",null,null,"湛水期間を月単位で入力してください。"]
[null,null,null,null,null,null,"面積",null,"㎡",null,null,"面積（㎥）を入力してください。"]
[null,null,null,null,null,null,null,null,null,{"$f":"計算表!D22","v":""},"㎥／年","　※入力された内容から自動計算します。"]
[null,null,11,"米等の契約栽培",null,null,"地域名",null,null,null,null,"契約栽培を実施している地域名を選択してください。"]
[null,null,null,"Ａ，Ｂ　どちらかを入力\nしてください。\n両方入力がある場合はＡ\nを優先します。",null,"Ａ","面積",null,"㎡",null,null,"栽培面積（㎥）を入力してください。"]
[null,null,null,null,null,"Ｂ","収穫量",null,"㎏",null,null,"収穫量（㎏）を入力してください。"]
[null,null,null,null,null,null,null,null,null,{"$f":"計算表!D26","v":""},"㎥／年","　※入力された内容から自動計算します。"]
[null,null,12,"その他",null,null,null,null,null,null,"㎥／年","涵養計画量を入力してください。"]
[null,null,"小計　②",null,null,null,null,null,null,{"$f":"計算表!D30","v":""},"㎥／年","　※入力された内容から自動計算します。"]
[null,"その他\n③",13,"涵養行事への参加等\n\n※地下水涵養量は算定\n　されません。",null,null,"内容",null,null,null,null,"涵養行事の内容を入力してください。(１５文字程度)"]
[null,null,null,null,null,null,"回数",null,"回",null,null,"参加回数を入力してください。"]
[null,null,null,null,null,null,"延べ人数",null,"人",null,null,"延べ人数を入力してください。"]
[null,null,14,"涵養域産作物の購入",null,null,"地域名",null,null,null,null,"購入する（した）作物が生産された\n地域名を選択してください。"]
[null,null,null,null,null,null,"産地",null,null,null,null,"購入する（した）作物の産地を入力してください。\n(10文字程度)"]
[null,null,null,null,null,null,"種類",null,null,null,null,"購入する（した）作物の種類を選択してください。"]
[null,null,null,null,null,null,"量",null,"㎏",null,null,"購入量（㎏）を入力してください。"]
[null,null,null,null,null,null,null,null,null,{"$f":"計算表!D34","v":""},"㎥／年","　※種類が \"米\" の場合は、入力された内容から\n　　自動計算します。"]
[null,null,null,null,null,null,null,null,null,null,"㎥／年","※種類が \"米以外\" の場合は涵養計画量を入力して\n　ください。"]
[null,null,15,"地下水涵養団体への協力",null,null,"団体名",null,null,null,null,"団体名を選択してください。"]
[null,null,null,null,null,null,"協力額",null,"円",null,null,"協力金額を入力してください。"]
[null,null,null,null,null,null,null,null,null,{"$f":"計算表!D38","v":""},"㎥／年","　※団体名が \"くまもと地下水財団\" の場合は、\n　　入力された内容から自動計算します。"]
[null,null,null,null,null,null,null,null,null,null,"㎥／年","※団体名が \"その他の団体\" の場合は涵養計画量\n　を入力してください。"]
[null,null,"小計　③",null,null,null,null,null,null,{"$f":"計算表!D40","v":""},"㎥／年","　※入力された内容から自動計算します。"]
[null,"涵養計画量の合計　（①＋②＋③）",null,null,null,null,null,null,null,{"$f":"計算表!D42","v":""},"㎥／年","　※入力された内容から自動計算します。"]
[]
[null,"地下水採取量　④",null,null,null,null,null,null,null,{"$f":"計算表!D50","v":""},"㎥／年","　※【②　基本情報入力】「年間採取量」の数値。"]
[null,null,null,null,null,null,null,null,null,null,"㎥／年","※「届出対象井戸」による地下水採取量が含まれる\n　場合は修正量を入力してください。"]
[]
[null,"涵養割合　（①＋③＋③）÷④",null,null,null,null,null,null,null,{"$f":"計算表!D46","v":""},"％","　※入力された内容から自動計算します。"]
[]
[null,"特記事項",null,null,null,null,null,null,null,null,null,"入力内容の補足や、特記事項があれば入力してくだ\nさい。(１行５０文字程度）"]
[]
[]
[null,null,null,null,null,null,null,null,null,null,null,"－　以　上　ー"]

{"sheet":"入力４","index":4,"n_rows":76,"n_cols":12,"rows_kept":76,"cut":false,"hidden":false,"merged":[[9,9,9,10],[10,6,10,8],[11,2,14,2],[11,3,14,5],[11,9,11,10],[12,9,12,10],[13,9,13,10],[14,6,14,8],[2,1,2,11],[4,2,4,8],[4,9,4,10],[5,1,31,1],[5,2,10,2],[5,3,10,5],[5,9,5,10],[6,9,6,10],[7,9,7,10],[8,9,8,10],[15,2,16,2],[15,3,16,5],[15,9,15,10],[16,6,16,8],[17,2,20,2],[17,3,20,5],[17,9,17,10],[18,9,18,10],[19,9,19,10],[20,6,20,8],[24,2,28,2],[24,3,28,5],[24,9,24,10],[25,9,25,10],[26,9,26,10],[27,9,27,10],[28,6,28,8],[21,2,23,2],[21,3,23,5],[21,7,21,8],[21,9,21,10],[22,9,22,10],[23,6,23,8],[29,4,29,8],[30,4,30,8],[31,2,31,8],[32,1,50,1],[32,2,40,2],[32,3,40,5],[38,7,38,8],[44,6,44,8],[45,2,48,2],[50,2,50,8],[41,2,44,2],[41,3,44,5],[46,9,46,10],[46,3,47,4],[47,9,47,10],[45,9,45,10],[48,6,48,8],[49,6,49,8],[38,9,38,10],[39,9,39,10],[32,9,32,10],[33,9,33,10],[40,6,40,8],[42,9,42,10],[43,9,43,10],[41,9,41,10],[34,9,34,10],[35,7,35,8],[35,9,35,10],[36,7,36,8],[36,9,36,10],[37,7,37,8],[37,9,37,10],[55,7,55,8],[55,9,55,10],[56,9,56,10],[57,9,57,10],[58,6,58,8],[59,6,59,8],[51,1,64,1],[51,2,53,2],[51,3,53,5],[51,7,51,8],[51,9,51,10],[52,9,52,10],[53,9,53,10],[54,2,59,2],[54,3,59,5],[54,9,54,10],[72,11,73,11],[73,3,73,10],[64,2,64,8],[65,1,65,8],[67,1,67,8],[70,1,70,8],[72,1,73,2],[72,3,72,10],[60,2,63,2],[60,3,63,5],[60,9,60,10],[61,9,61,10],[62,6,62,8],[63,6,63,8]]}
[]
[]
[null,"④　項目及び内容入力（地下水涵養計画実施状況報告書）"]
[]
[null,"涵養の方策","項目及び内容",null,null,null,null,null,null,"涵養実施量",null,"入力項目の説明（入力例）"]
[null,"敷地内における涵養\n（雨水の地下浸透）　　　\n①",1,"雨水浸透ます",null,null,"設置基数",null,"基",null,null,"設置基数を入力してください。"]
[null,null,null,null,null,null,"内径",null,"㎝",null,null,"内径（㎝）を入力してください。"]
[null,null,null,null,null,null,"深さ",null,"㎝",null,null,"深さ（㎝）を入力してください。"]
[null,null,null,null,null,null,"屋根面積",null,"㎡",null,null,"屋根面積（㎥）を入力してください。"]
[null,null,null,null,null,null,"種類",null,null,null,null,"雨水浸透ますの種類を選択してください。"]
[null,null,null,null,null,null,null,null,null,{"$f":"計算表２!D2","v":""},"㎥／年","　※入力された内容から自動計算します。"]
[null,null,2,"雨水浸透トレンチ",null,null,"内径",null,"㎝",null,null,"内径（㎝）を入力してください。"]
[null,null,null,null,null,null,"長さ",null,"ｍ",null,null,"長さ（ｍ）を入力してください。"]
[null,null,null,null,null,null,"敷地面積",null,"㎡",null,null,"集水面積（敷地面積等）（㎥）を入力してください。"]
[null,null,null,null,null,null,null,null,null,{"$f":"計算表２!D4","v":""},"㎥／年","　※入力された内容から自動計算します。"]
[null,null,3,"透水性舗装　又は\n緑化ブロック",null,null,"面積",null,"㎡",null,null,"面積（㎥）を入力してください。"]
[null,null,null,null,null,null,null,null,null,{"$f":"計算表２!D6","v":""},"㎥／年","　※入力された内容から自動計算します。"]
[null,null,4,"雨水浸透側溝",null,null,"深さ",null,"ｍ",null,null,"深さ（ｍ）を入力してください。"]
[null,null,null,null,null,null,"長さ",null,"ｍ",null,null,"長さ（ｍ）を入力してください。"]
[null,null,null,null,null,null,"敷地面積",null,"㎡",null,null,"集水面積（敷地面積等）（㎥）を入力してください。"]
[null,null,null,null,null,null,null,null,null,{"$f":"計算表２!D8","v":""},"㎥／年","　※入力された内容から自動計算します。"]
[null,null,5,"緑地等",null,null,"形態",null,null,null,null,"形態（芝生、植栽等）を入力してください。\n(１０文字程度)"]
[null,null,null,null,null,null,"面積",null,"㎡",null,null,"設置面積（㎥）を入力してください。"]
[null,null,null,null,null,null,null,null,null,{"$f":"計算表２!D10","v":""},"㎥／年","　※入力された内容から自動計算します。"]
[null,null,6,"浸透型調整池",null,null,"縦",null,"ｍ",null,null,"縦の長さ（ｍ）を入力してください。"]
[null,null,null,null,null,null,"横",null,"ｍ",null,null,"横の長さ（ｍ）を入力してください。"]
[null,null,null,null,null,null,"深さ",null,"ｍ",null,null,"深さ（ｍ）を入力してください。"]
[null,null,null,null,null,null,"集水面積",null,"㎡",null,null,"集水面積（敷地面積等）（㎥）を入力してください。"]
[null,null,null,null,null,null,null,null,null,{"$f":"計算表２!D12","v":""},"㎥／年","　※入力された内容から自動計算します。"]
[null,null,7,"その他",null,null,null,null,null,null,"㎥／年","具体的な内容があれば入力してください。\n(４０文字程度)\n涵養計画量を入力してください。"]
[null,null,8,"その他",null,null,null,null,null,null,"㎥／年","具体的な内容があれば入力してください。\n(４０文字程度)\n涵養計画量を入力してください。"]
[null,null,"小計　①",null,null,null,null,null,null,{"$f":"計算表２!D18","v":""},"㎥／年","　※入力された内容から自動計算します。"]
[null,"敷地外における涵養\n②",9,"涵養林の整備",null,null,"整備の種類",null,null,null,null,"涵養林整備の種類を選択してください。"]
[null,null,null,null,null,null,"地域名",null,null,null,null,"植林場所が該当する地域名を選択してください。"]
[null,null,null,null,null,null,"植林年度",null,"年度",null,null,"植林年度を入力してください。"]
[null,null,null,null,null,null,"植林場所",null,null,null,null,"植林場所(市町村)を入力してください。(１０文字程度)"]
[null,null,null,null,null,null,"樹種",null,null,null,null,"樹種を入力してください。(１０文字程度)"]
[null,null,null,null,null,null,"取組の内容",null,null,null,null,"取組の内容を入力してください。(１０文字程度)"]
[null,null,null,null,null,null,"今後の計画",null,null,null,null,"今後の計画を入力してください。(１０文字程度)"]
[null,null,null,null,null,null,"植林面積",null,"㎡",null,null,"植林面積（㎥）を入力してください。"]
[null,null,null,null,null,null,null,null,null,{"$f":"計算表２!D20","v":""},"㎥／年","　※入力された内容から自動計算します。"]
[null,null,10,"水田湛水",null,null,"地域名",null,null,null,null,"水田湛水を実施している地域名を選択してください。"]
[null,null,null,null,null,null,"期間",null,"月",null,null,"湛水期間を月単位で入力してください。"]
[null,null,null,null,null,null,"面積",null,"㎡",null,null,"面積（㎥）を入力してください。"]
[null,null,null,null,null,null,null,null,null,{"$f":"計算表２!D22","v":""},"㎥／年","　※入力された内容から自動計算します。"]
[null,null,11,"米等の契約栽培",null,null,"地域名",null,null,null,null,"契約栽培を実施している地域名を選択してください。"]
[null,null,null,"Ａ，Ｂ　どちらかを入力\nしてください。\n両方入力がある場合はＡ\nを優先します。",null,"Ａ","面積",null,"㎡",null,null,"栽培面積（㎥）を入力してください。"]
[null,null,null,null,null,"Ｂ","収穫量",null,"㎏",null,null,"収穫量（㎏）を入力してください。"]
[null,null,null,null,null,null,null,null,null,{"$f":"計算表２!D26","v":""},"㎥／年","　※入力された内容から自動計算します。"]
[null,null,12,"その他",null,null,null,null,null,null,"㎥／年","涵養実施量を入力してください。"]
[null,null,"小計　②",null,null,null,null,null,null,{"$f":"計算表２!D30","v":""},"㎥／年","　※入力された内容から自動計算します。"]
[null,"その他\n③",13,"涵養行事への参加等\n\n※地下水涵養量は算定\n　されません。",null,null,"内容",null,null,null,null,"涵養行事の内容を入力してください。(１５文字程度)"]
[null,null,null,null,null,null,"回数",null,"回",null,null,"参加回数を入力してください。"]
[null,null,null,null,null,null,"延べ人数",null,"人",null,null,"延べ人数を入力してください。"]
[null,null,14,"涵養域産作物の購入",null,null,"地域名",null,null,null,null,"購入する（した）作物が生産された\n地域名を選択してください。"]
[null,null,null,null,null,null,"産地",null,null,null,null,"購入する（した）作物の産地を入力してください。\n(10文字程度)"]
[null,null,null,null,null,null,"種類",null,null,null,null,"購入する（した）作物の種類を選択してください。"]
[null,null,null,null,null,null,"量",null,"㎏",null,null,"購入量（㎏）を入力してください。"]
[null,null,null,null,null,null,null,null,null,{"$f":"計算表２!D34","v":""},"㎥／年","　※種類が \"米\" の場合は、入力された内容から\n　　自動計算します。"]
[null,null,null,null,null,null,null,null,null,null,"㎥／年","※種類が \"米以外\" の場合は涵養実施量を入力して\n　ください。"]
[null,null,15,"地下水涵養団体への協力",null,null,"団体名",null,null,null,null,"団体名を選択してください。"]
[null,null,null,null,null,null,"協力額",null,"円",null,null,"協力金額を入力してください。"]
[null,null,null,null,null,null,null,null,null,{"$f":"計算表２!D38","v":""},"㎥／年","　※団体名が \"くまもと地下水財団\" の場合は、\n　　入力された内容から自動計算します。"]
[null,null,null,null,null,null,null,null,null,null,"㎥／年","※団体名が \"その他の団体\" の場合は涵養実施量\n　を入力してください。"]
[null,null,"小計　③",null,null,null,null,null,null,{"$f":"計算表２!D40","v":""},"㎥／年","　※入力された内容から自動計算します。"]
[null,"涵養実施量の合計　（①＋②＋③）",null,null,null,null,null,null,null,{"$f":"計算表２!D42","v":""},"㎥／年","　※入力された内容から自動計算します。"]
[]
[null,"地下水採取量　④",null,null,null,null,null,null,null,{"$f":"計算表２!D50","v":""},"㎥／年","　※【②　基本情報入力】「年間採取量」の数値。"]
[null,null,null,null,null,null,null,null,null,null,"㎥／年","※「届出対象井戸」による地下水採取量が含まれる\n　場合は修正量を入力してください。"]
[]
[null,"涵養割合　（①＋③＋③）÷④",null,null,null,null,null,null,null,{"$f":"計算表２!D46","v":""},"％","　※入力された内容から自動計算します。"]
[]
[null,"特記事項",null,null,null,null,null,null,null,null,null,"入力内容の補足や、特記事項があれば入力してくだ\nさい。(１行５０文字程度）"]
[]
[]
[null,null,null,null,null,null,null,null,null,null,null,"－　以　上　ー"]

{"sheet":"計画書","index":5,"n_rows":50,"n_cols":147,"rows_kept":50,"cut":false,"hidden":false,"merged":[[33,141,33,148],[30,103,30,116],[30,117,30,122],[30,141,30,148],[33,95,33,102],[33,103,33,116],[33,117,33,122],[30,123,30,140],[31,123,31,140],[33,123,33,140],[32,95,32,102],[32,103,32,116],[32,117,32,122],[30,91,30,102],[28,141,29,148],[28,123,28,140],[29,123,29,140],[32,123,32,140],[31,141,32,148],[19,29,19,40],[19,51,19,64],[22,117,22,122],[23,117,23,122],[24,117,24,122],[19,117,19,122],[20,117,20,122],[21,117,21,122],[20,81,20,88],[19,103,19,116],[20,95,20,102],[21,91,21,102],[21,29,21,90],[20,62,20,69],[20,70,20,80],[24,68,24,72],[24,82,24,86],[30,29,30,46],[30,47,30,61],[34,123,34,140],[34,62,34,74],[34,75,34,122],[22,123,22,140],[24,103,24,116],[24,87,24,102],[22,93,22,102],[23,51,23,94],[29,29,29,43],[29,44,29,61],[30,62,30,76],[30,77,30,90],[29,62,29,74],[28,88,28,119],[28,53,28,74],[29,95,29,102],[29,75,29,94],[29,103,29,122],[18,0,27,28],[19,123,19,140],[18,123,18,140],[19,41,19,50],[23,141,23,148],[24,123,24,140],[18,51,18,60],[18,61,18,100],[18,101,18,122],[19,65,19,74],[20,103,20,116],[19,75,19,84],[19,85,19,102],[20,89,20,94],[24,141,24,148],[20,141,20,148],[20,29,20,61],[21,103,21,116],[24,55,24,59],[23,123,23,140],[23,95,23,102],[23,103,23,116],[25,123,25,140],[25,141,25,148],[15,29,15,32],[15,33,15,36],[15,37,15,40],[14,109,14,148],[15,65,15,68],[22,141,22,148],[27,141,27,148],[27,29,27,122],[18,29,18,50],[26,123,26,140],[26,141,26,148],[22,79,22,86],[22,87,22,92],[22,103,22,116],[23,29,23,50],[24,73,24,81],[25,29,25,41],[25,42,25,122],[26,29,26,41],[26,42,26,122],[9,130,9,145],[9,122,9,129],[14,41,14,44],[15,109,15,148],[13,65,13,68],[13,61,13,64],[14,53,14,56],[14,57,14,60],[14,61,14,64],[15,45,15,48],[9,146,9,148],[13,49,13,52],[9,92,9,121],[9,85,9,91],[15,41,15,44],[13,69,15,101],[15,53,15,64],[15,49,15,52],[14,45,14,48],[14,65,14,68],[14,49,14,52],[13,29,13,32],[10,0,10,148],[11,0,11,7],[12,0,12,7],[11,8,12,28],[11,102,12,123],[14,104,14,108],[21,123,21,140],[21,141,21,148],[11,144,12,148],[13,45,13,48],[13,41,13,44],[13,37,13,40],[13,33,13,36],[11,29,12,101],[13,57,13,60],[13,53,13,56],[17,123,17,148],[17,0,17,28],[17,29,17,122],[13,0,15,28],[14,29,14,32],[14,33,14,36],[14,37,14,40],[39,65,39,74],[39,75,39,82],[39,83,39,88],[28,0,37,28],[36,29,36,122],[36,123,36,140],[36,141,36,148],[37,29,37,122],[37,123,37,140],[37,141,37,148],[28,120,28,122],[28,75,28,87],[35,63,35,70],[35,71,35,84],[35,103,35,116],[35,91,35,102],[34,29,34,61],[32,29,32,94],[31,29,31,61],[28,29,28,52],[33,29,33,94],[34,141,34,148],[31,62,31,74],[31,75,31,122],[4,92,4,105],[4,89,4,91],[5,92,5,148],[5,85,5,91],[7,144,7,147],[7,85,7,91],[7,92,7,143],[1,0,2,148],[3,113,3,144],[5,75,5,84],[0,129,0,132],[0,133,0,136],[0,137,0,140],[0,92,0,104],[0,64,0,79],[0,80,0,83],[0,88,0,91],[0,84,0,87],[41,141,41,148],[41,117,41,122],[41,107,41,116],[41,102,41,106],[0,141,0,144],[0,145,0,148],[0,113,0,116],[0,105,0,108],[0,109,0,112],[0,117,0,128],[11,124,12,143],[39,106,39,122],[40,141,40,148],[40,123,40,140],[35,141,35,148],[35,123,35,140],[41,123,41,140],[40,62,40,74],[27,123,27,140],[22,60,22,67],[22,68,22,78],[18,141,18,148],[19,141,19,148],[20,123,20,140],[40,29,40,61],[41,75,41,81],[41,55,41,74],[41,29,41,54],[38,29,38,122],[38,123,39,148],[39,89,39,105],[22,29,22,59],[24,29,24,50],[24,51,24,54],[24,60,24,67],[35,29,35,62],[35,85,35,90],[35,117,35,122],[39,29,39,40],[39,41,39,64],[44,0,44,122],[41,82,41,101],[42,29,42,88],[42,89,42,119],[42,120,42,122],[43,29,43,122],[38,0,43,28],[40,75,40,122],[46,0,47,28],[45,29,45,36],[45,71,45,78],[45,79,45,122],[45,37,45,70],[47,29,47,148],[45,141,45,148],[45,0,45,28],[46,29,46,148],[45,123,45,140],[42,141,42,148],[43,123,43,140],[43,141,43,148],[44,123,44,140],[44,141,44,148],[42,123,42,140]]}
["別記第21号様式(第18条の2関係)",null,null,null,null,null,null,null,null,null,null,null,null,null,null,null,null,null,null,null,null,null,null,null,null,null,null,null,null,null,null,null,null,null,null,null,null,null,null,null,null,null,null,null,null,null,null,null,null,null,null,null,null,null,null,null,null,null,null,null,null,null,null,null,"提出年度",null,null,null,null,null,null,null,null,null,null,null,null,null,null,null,null,null,null,null,null,null,null,null,null,null,null,null,"市町村",null,null,null,null,null,null,null,null,null,null,null,null,null,null,null,null,null,null,null,null,null,null,null,null,"事業者"]
["地下水涵養計画書"]
[]
[null,null,null,null,null,null,null,null,null,null,null,null,null,null,null,null,null,null,null,null,null,null,null,null,null,null,null,null,null,null,null,null,null,null,null,null,null,null,null,null,null,null,null,null,null,null,null,null,null,null,null,null,null,null,null,null,null,null,null,null,null,null,null,null,null,null,null,null,null,null,null,null,null,null,null,null,null,null,null,null,null,null,null,null,null,null,null,null,null,null,null,null,null,null,null,null,null,null,null,null,null,null,null,null,null,null,null,null,null,null,null,null,null,{"$f":"入力１!R9","v":"平成26年4月1日"}]
[null,null,null,null,null,"熊本県知事　　　　　　　様",null,null,null,null,null,null,null,null,null,null,null,null,null,null,null,null,null,null,null,null,null,null,null,null,null,null,null,null,null,null,null,null,null,null,null,null,null,null,null,null,null,null,null,null,null,null,null,null,null,null,null,null,null,null,null,null,null,null,null,null,null,null,null,null,null,null,null,null,null,null,null,null,null,null,null,null,null,null,null,null,null,null,null,"〒",null,null,{"$f":"IF(ISBLANK(入力１!I12),\"\",入力１!I12)","v":""}]
[null,null,null,null,null,null,null,null,null,null,null,null,null,null,null,null,null,null,null,null,null,null,null,null,null,null,null,null,null,null,null,null,null,null,null,null,null,null,null,null,null,null,null,null,null,null,null,null,null,null,null,null,null,null,null,null,null,null,null,null,null,null,null,null,null,null,null,null,null,null,null,null,null,null,null,"提出者",null,null,null,null,null,null,null,null,null,"住所",null,null,null,null,null,null,{"$f":"IF(ISBLANK(入力１!I13),\"\",入力１!I13)","v":""}]
[null,null,null,null,null,null,null,null,null,null,null,null,null,null,null,null,null,null,null,null,null,null,null,null,null,null,null,null,null,null,null,null,null,null,null,null,null,null,null,null,null,null,null,null,null,null,null,null,null,null,null,null,null,null,null,null,null,null,null,null,null,null,null,null,null,null,null,null,null,null,null,null,null,null,null,"(主たる事務所の所在地) "]
[null,null,null,null,null,null,null,null,null,null,null,null,null,null,null,null,null,null,null,null,null,null,null,null,null,null,null,null,null,null,null,null,null,null,null,null,null,null,null,null,null,null,null,null,null,null,null,null,null,null,null,null,null,null,null,null,null,null,null,null,null,null,null,null,null,null,null,null,null,null,null,null,null,null,null,null,null,null,null,null,null,null,null,null,null,"氏名",null,null,null,null,null,null,{"$f":"IF(ISBLANK(入力１!I11),\"\",入力１!I11)","v":""},null,null,null,null,null,null,null,null,null,null,null,null,null,null,null,null,null,null,null,null,null,null,null,null,null,null,null,null,null,null,null,null,null,null,null,null,null,null,null,null,null,null,null,null,null,null,null,null,null,null,null,"印"]
[null,null,null,null,null,null,null,null,null,null,null,null,null,null,null,null,null,null,null,null,null,null,null,null,null,null,null,null,null,null,null,null,null,null,null,null,null,null,null,null,null,null,null,null,null,null,null,null,null,null,null,null,null,null,null,null,null,null,null,null,null,null,null,null,null,null,null,null,null,null,null,null,null,null,null,"(法人等にあっては名称及び代表者の氏名)"]
[null,null,null,null,null,null,null,null,null,null,null,null,null,null,null,null,null,null,null,null,null,null,null,null,null,null,null,null,null,null,null,null,null,null,null,null,null,null,null,null,null,null,null,null,null,null,null,null,null,null,null,null,null,null,null,null,null,null,null,null,null,null,null,null,null,null,null,null,null,null,null,null,null,null,null,null,null,null,null,null,null,null,null,null,null,"電話",null,null,null,null,null,null,{"$f":"IF(ISBLANK(入力１!I14),\"\",入力１!I14)","v":""},null,null,null,null,null,null,null,null,null,null,null,null,null,null,null,null,null,null,null,null,null,null,null,null,null,null,null,null,null,"担当(　　 　　　",null,null,null,null,null,null,null,{"$f":"IF(ISBLANK(入力１!I15),\"\",入力１!I15)","v":""},null,null,null,null,null,null,null,null,null,null,null,null,null,null,null,")"]
["熊本県地下水保全条例第35条第1項の規定により、地下水涵養計画について、次のとおり提出します。"]
["様式",null,null,null,null,null,null,null,"揚水設備の設置場所",null,null,null,null,null,null,null,null,null,null,null,null,null,null,null,null,null,null,null,null,{"$f":"IF(ISBLANK(入力２!I8),\"\",入力２!I8)","v":""},null,null,null,null,null,null,null,null,null,null,null,null,null,null,null,null,null,null,null,null,null,null,null,null,null,null,null,null,null,null,null,null,null,null,null,null,null,null,null,null,null,null,null,null,null,null,null,null,null,null,null,null,null,null,null,null,null,null,null,null,null,null,null,null,null,null,null,null,null,null,null,null,"年間採取量",null,null,null,null,null,null,null,null,null,null,null,null,null,null,null,null,null,null,null,null,null,{"$f":"IF(ISBLANK(入力２!I9),\"\",入力２!I9)","v":""},null,null,null,null,null,null,null,null,null,null,null,null,null,null,null,null,null,null,null,"㎥"]
["09"]
["井戸の番号及び本数（複数ある場合には全て記入）",null,null,null,null,null,null,null,null,null,null,null,null,null,null,null,null,null,null,null,null,null,null,null,null,null,null,null,null,{"$f":"IF(ISBLANK(入力２!I10),\"\",MID(入力２!I10,1,1))","v":""},null,null,null,{"$f":"IF(ISBLANK(入力２!I10),\"\",MID(入力２!I10,2,1))","v":""},null,null,null,{"$f":"IF(ISBLANK(入力２!I10),\"\",MID(入力２!I10,3,1))","v":""},null,null,null,{"$f":"IF(ISBLANK(入力２!I10),\"\",MID(入力２!I10,4,1))","v":""},null,null,null,{"$f":"IF(ISBLANK(入力２!I10),\"\",MID(入力２!I10,5,1))","v":""},null,null,null,{"$f":"IF(ISBLANK(入力２!I13),\"\",MID(入力２!I13,1,1))","v":""},null,null,null,{"$f":"IF(ISBLANK(入力２!I13),\"\",MID(入力２!I13,2,1))","v":""},null,null,null,{"$f":"IF(ISBLANK(入力２!I13),\"\",MID(入力２!I13,3,1))","v":""},null,null,null,{"$f":"IF(ISBLANK(入力２!I13),\"\",MID(入力２!I13,4,1))","v":""},null,null,null,{"$f":"IF(ISBLANK(入力２!I13),\"\",MID(入力２!I13,5,1))","v":""},null,null,null,"地下水の用途"]
[null,null,null,null,null,null,null,null,null,null,null,null,null,null,null,null,null,null,null,null,null,null,null,null,null,null,null,null,null,{"$f":"IF(ISBLANK(入力２!I11),\"\",MID(入力２!I11,1,1))","v":""},null,null,null,{"$f":"IF(ISBLANK(入力２!I11),\"\",MID(入力２!I11,2,1))","v":""},null,null,null,{"$f":"IF(ISBLANK(入力２!I11),\"\",MID(入力２!I11,3,1))","v":""},null,null,null,{"$f":"IF(ISBLANK(入力２!I11),\"\",MID(入力２!I11,4,1))","v":""},null,null,null,{"$f":"IF(ISBLANK(入力２!I11),\"\",MID(入力２!I11,5,1))","v":""},null,null,null,{"$f":"IF(ISBLANK(入力２!I14),\"\",MID(入力２!I14,1,1))","v":""},null,null,null,{"$f":"IF(ISBLANK(入力２!I14),\"\",MID(入力２!I14,2,1))","v":""},null,null,null,{"$f":"IF(ISBLANK(入力２!I14),\"\",MID(入力２!I14,3,1))","v":""},null,null,null,{"$f":"IF(ISBLANK(入力２!I14),\"\",MID(入力２!I14,4,1))","v":""},null,null,null,{"$f":"IF(ISBLANK(入力２!I14),\"\",MID(入力２!I14,5,1))","v":""},null,null,null,null,null,null,null,null,null,null,null,null,null,null,null,null,null,null,null,null,null,null,null,null,null,null,null,null,null,null,null,null,null,null,null,null,null,null,{"$f":"作業表!E6","v":" "},null,null,null,null,{"$f":"作業表!F6","v":0}]
[null,null,null,null,null,null,null,null,null,null,null,null,null,null,null,null,null,null,null,null,null,null,null,null,null,null,null,null,null,{"$f":"IF(ISBLANK(入力２!I12),\"\",MID(入力２!I12,1,1))","v":""},null,null,null,{"$f":"IF(ISBLANK(入力２!I12),\"\",MID(入力２!I12,2,1))","v":""},null,null,null,{"$f":"IF(ISBLANK(入力２!I12),\"\",MID(入力２!I12,3,1))","v":""},null,null,null,{"$f":"IF(ISBLANK(入力２!I12),\"\",MID(入力２!I12,4,1))","v":""},null,null,null,{"$f":"IF(ISBLANK(入力２!I12),\"\",MID(入力２!I12,5,1))","v":""},null,null,null,"計",null,null,null,{"$f":"IF(ISBLANK(入力２!I15),\"\",入力２!I15)","v":""},null,null,null,null,null,null,null,null,null,null,null,"本",null,null,null,null,null,null,null,null,null,null,null,null,null,null,null,null,null,null,null,null,null,null,null,null,null,null,null,null,null,null,null,null,null,null,null,null,null,null,null,null,null,null,null,{"$f":"IF(ISBLANK(入力２!V16),\"\",\"(\"&入力２!V16&\")\")","v":""}]
[]
["涵養の方策",null,null,null,null,null,null,null,null,null,null,null,null,null,null,null,null,null,null,null,null,null,null,null,null,null,null,null,null,"項目及び内容",null,null,null,null,null,null,null,null,null,null,null,null,null,null,null,null,null,null,null,null,null,null,null,null,null,null,null,null,null,null,null,null,null,null,null,null,null,null,null,null,null,null,null,null,null,null,null,null,null,null,null,null,null,null,null,null,null,null,null,null,null,null,null,null,null,null,null,null,null,null,null,null,null,null,null,null,null,null,null,null,null,null,null,null,null,null,null,null,null,null,null,null,null,"涵養計画量"]
["敷地内における涵養\n(雨水の地下浸透)①",null,null,null,null,null,null,null,null,null,null,null,null,null,null,null,null,null,null,null,null,null,null,null,null,null,null,null,null,"□雨水浸透ます　",null,null,null,null,null,null,null,null,null,null,null,null,null,null,null,null,null,null,null,null,null,{"$f":"IF(ISBLANK(入力３!H6),\"\",入力３!H6)","v":""},null,null,null,null,null,null,null,null,null,"基、ますの大きさ　　（種類：",null,null,null,null,null,null,null,null,null,null,null,null,null,null,null,null,null,null,null,null,null,null,null,null,null,null,null,null,null,null,null,null,null,null,null,null,null,null,null,{"$f":"作業表!F7","v":"　"}]
[null,null,null,null,null,null,null,null,null,null,null,null,null,null,null,null,null,null,null,null,null,null,null,null,null,null,null,null,null," : 内径",null,null,null,null,null,null,null,null,null,null,null,{"$f":"IF(ISBLANK(入力３!H7),\"\",入力３!H7)","v":""},null,null,null,null,null,null,null,null,null,"㎝、深さ",null,null,null,null,null,null,null,null,null,null,null,null,null,{"$f":"IF(ISBLANK(入力３!H8),\"\",入力３!H8)","v":""},null,null,null,null,null,null,null,null,null,"㎝、",null,null,null,null,null,null,null,null,null,"屋根面積",null,null,null,null,null,null,null,null,null,null,null,null,null,null,null,null,null,{"$f":"IF(ISBLANK(入力３!H9),\"\",入力３!H9)","v":""},null,null,null,null,null,null,null,null,null,null,null,null,null,"㎡)",null,null,null,null,null,{"$f":"IF(ISBLANK(入力３!J11),\"\",入力３!J11)","v":""},null,null,null,null,null,null,null,null,null,null,null,null,null,null,null,null,null,"㎥／年"]
[null,null,null,null,null,null,null,null,null,null,null,null,null,null,null,null,null,null,null,null,null,null,null,null,null,null,null,null,null,"□雨水浸透トレンチ（内径",null,null,null,null,null,null,null,null,null,null,null,null,null,null,null,null,null,null,null,null,null,null,null,null,null,null,null,null,null,null,null,null,{"$f":"IF(ISBLANK(入力３!H12),\"\",入力３!H12)","v":""},null,null,null,null,null,null,null,"㎝、長さ",null,null,null,null,null,null,null,null,null,null,{"$f":"IF(ISBLANK(入力３!H13),\"\",入力３!H13)","v":""},null,null,null,null,null,null,null,"ｍ、",null,null,null,null,null,"面積",null,null,null,null,null,null,null,{"$f":"IF(ISBLANK(入力３!H14),\"\",入力３!H14)","v":""},null,null,null,null,null,null,null,null,null,null,null,null,null,"㎡)",null,null,null,null,null,{"$f":"IF(ISBLANK(入力３!J15),\"\",入力３!J15)","v":""},null,null,null,null,null,null,null,null,null,null,null,null,null,null,null,null,null,"㎥／年"]
[null,null,null,null,null,null,null,null,null,null,null,null,null,null,null,null,null,null,null,null,null,null,null,null,null,null,null,null,null,"□透水性舗装又は緑化ブロック　　　　　　",null,null,null,null,null,null,null,null,null,null,null,null,null,null,null,null,null,null,null,null,null,null,null,null,null,null,null,null,null,null,null,null,null,null,null,null,null,null,null,null,null,null,null,null,null,null,null,null,null,null,null,null,null,null,null,null,null,null,null,null,null,"（面積",null,null,null,null,null,null,null,null,null,null,null,{"$f":"IF(ISBLANK(入力３!H16),\"\",入力３!H16)","v":""},null,null,null,null,null,null,null,null,null,null,null,null,null,"㎡)",null,null,null,null,null,{"$f":"IF(ISBLANK(入力３!J17),\"\",入力３!J17)","v":""},null,null,null,null,null,null,null,null,null,null,null,null,null,null,null,null,null,"㎥／年"]
[null,null,null,null,null,null,null,null,null,null,null,null,null,null,null,null,null,null,null,null,null,null,null,null,null,null,null,null,null,"□雨水浸透側溝（深さ　m、長さ　m、　　　　面積",null,null,null,null,null,null,null,null,null,null,null,null,null,null,null,null,null,null,null,null,null,null,null,null,null,null,null,null,null,null,{"$f":"IF(ISBLANK(入力３!H18),\"\",入力３!H18)","v":""},null,null,null,null,null,null,null,"ｍ、長さ",null,null,null,null,null,null,null,null,null,null,{"$f":"IF(ISBLANK(入力３!H19),\"\",入力３!H19)","v":""},null,null,null,null,null,null,null,"ｍ、",null,null,null,null,null,"面積",null,null,null,null,null,null,null,null,null,{"$f":"IF(ISBLANK(入力３!H20),\"\",入力３!H20)","v":""},null,null,null,null,null,null,null,null,null,null,null,null,null,"㎡)",null,null,null,null,null,{"$f":"IF(ISBLANK(入力３!J21),\"\",入力３!J21)","v":""},null,null,null,null,null,null,null,null,null,null,null,null,null,null,null,null,null,"㎥／年"]
[null,null,null,null,null,null,null,null,null,null,null,null,null,null,null,null,null,null,null,null,null,null,null,null,null,null,null,null,null,"□緑地等（形態",null,null,null,null,null,null,null,null,null,null,null,null,null,null,null,null,null,null,null,null,null,{"$f":"IF(ISBLANK(入力３!H22),\"\",入力３!H22)","v":""},null,null,null,null,null,null,null,null,null,null,null,null,null,null,null,null,null,null,null,null,null,null,null,null,null,null,null,null,null,null,null,null,null,null,null,null,null,null,null,null,null,null,null,"面積",null,null,null,null,null,null,null,{"$f":"IF(ISBLANK(入力３!H23),\"\",入力３!H23)","v":""},null,null,null,null,null,null,null,null,null,null,null,null,null,"㎡)",null,null,null,null,null,{"$f":"IF(ISBLANK(入力３!J24),\"\",入力３!J24)","v":""},null,null,null,null,null,null,null,null,null,null,null,null,null,null,null,null,null,"㎥／年"]
[null,null,null,null,null,null,null,null,null,null,null,null,null,null,null,null,null,null,null,null,null,null,null,null,null,null,null,null,null,"□浸透型調整池",null,null,null,null,null,null,null,null,null,null,null,null,null,null,null,null,null,null,null,null,null,"(縦",null,null,null,{"$f":"IF(ISBLANK(入力３!H25),\"\",入力３!H25)","v":""},null,null,null,null,"m、横",null,null,null,null,null,null,null,{"$f":"IF(ISBLANK(入力３!H26),\"\",入力３!H26)","v":""},null,null,null,null,"m、深さ",null,null,null,null,null,null,null,null,{"$f":"IF(ISBLANK(入力３!H27),\"\",入力３!H27)","v":""},null,null,null,null,"m、 集水面積",null,null,null,null,null,null,null,null,null,null,null,null,null,null,null,{"$f":"IF(ISBLANK(入力３!H28),\"\",入力３!H28)","v":""},null,null,null,null,null,null,null,null,null,null,null,null,null,"㎡)",null,null,null,null,null,{"$f":"IF(ISBLANK(入力３!J29),\"\",入力３!J29)","v":""},null,null,null,null,null,null,null,null,null,null,null,null,null,null,null,null,null,"㎥／年"]
[null,null,null,null,null,null,null,null,null,null,null,null,null,null,null,null,null,null,null,null,null,null,null,null,null,null,null,null,null,"□その他",null,null,null,null,null,null,null,null,null,null,null,null,{"$f":"IF(ISBLANK(入力３!E30),\"\",入力３!E30)","v":""},null,null,null,null,null,null,null,null,null,null,null,null,null,null,null,null,null,null,null,null,null,null,null,null,null,null,null,null,null,null,null,null,null,null,null,null,null,null,null,null,null,null,null,null,null,null,null,null,null,null,null,null,null,null,null,null,null,null,null,null,null,null,null,null,null,null,null,null,null,null,null,null,null,null,null,null,null,null,null,null,{"$f":"IF(ISBLANK(入力３!J30),\"\",入力３!J30)","v":""},null,null,null,null,null,null,null,null,null,null,null,null,null,null,null,null,null,"㎥／年"]
[null,null,null,null,null,null,null,null,null,null,null,null,null,null,null,null,null,null,null,null,null,null,null,null,null,null,null,null,null,null,null,null,null,null,null,null,null,null,null,null,null,null,{"$f":"IF(ISBLANK(入力３!E31),\"\",入力３!E31)","v":""},null,null,null,null,null,null,null,null,null,null,null,null,null,null,null,null,null,null,null,null,null,null,null,null,null,null,null,null,null,null,null,null,null,null,null,null,null,null,null,null,null,null,null,null,null,null,null,null,null,null,null,null,null,null,null,null,null,null,null,null,null,null,null,null,null,null,null,null,null,null,null,null,null,null,null,null,null,null,null,null,{"$f":"IF(ISBLANK(入力３!J31),\"\",入力３!J31)","v":""},null,null,null,null,null,null,null,null,null,null,null,null,null,null,null,null,null,"㎥／年"]
[null,null,null,null,null,null,null,null,null,null,null,null,null,null,null,null,null,null,null,null,null,null,null,null,null,null,null,null,null,"小　　　計　　　①",null,null,null,null,null,null,null,null,null,null,null,null,null,null,null,null,null,null,null,null,null,null,null,null,null,null,null,null,null,null,null,null,null,null,null,null,null,null,null,null,null,null,null,null,null,null,null,null,null,null,null,null,null,null,null,null,null,null,null,null,null,null,null,null,null,null,null,null,null,null,null,null,null,null,null,null,null,null,null,null,null,null,null,null,null,null,null,null,null,null,null,null,null,{"$f":"IF(ISBLANK(入力３!J32),\"\",入力３!J32)","v":""},null,null,null,null,null,null,null,null,null,null,null,null,null,null,null,null,null,"㎥／年"]
["敷地外における涵養②",null,null,null,null,null,null,null,null,null,null,null,null,null,null,null,null,null,null,null,null,null,null,null,null,null,null,null,null,"□涵養林の整備（",null,null,null,null,null,null,null,null,null,null,null,null,null,null,null,null,null,null,null,null,null,null,null,{"$f":"作業表!F8","v":"　"},null,null,null,null,null,null,null,null,null,null,null,null,null,null,null,null,null,null,null,null,null,"、地域名",null,null,null,null,null,null,null,null,null,null,null,null,{"$f":"作業表!F9","v":"　"},null,null,null,null,null,null,null,null,null,null,null,null,null,null,null,null,null,null,null,null,null,null,null,null,null,null,null,null,null,null,null,")"]
[null,null,null,null,null,null,null,null,null,null,null,null,null,null,null,null,null,null,null,null,null,null,null,null,null,null,null,null,null,"　植林年度：",null,null,null,null,null,null,null,null,null,null,null,null,null,null,{"$f":"IF(ISBLANK(入力３!H35),\"\",入力３!H35)","v":""},null,null,null,null,null,null,null,null,null,null,null,null,null,null,null,null,null,"植林場所：",null,null,null,null,null,null,null,null,null,null,null,null,{"$f":"IF(ISBLANK(入力３!H36),\"\",入力３!H36)","v":""},null,null,null,null,null,null,null,null,null,null,null,null,null,null,null,null,null,null,null,"樹種：",null,null,null,null,null,null,null,{"$f":"IF(ISBLANK(入力３!H37),\"\",入力３!H37)","v":""}]
[null,null,null,null,null,null,null,null,null,null,null,null,null,null,null,null,null,null,null,null,null,null,null,null,null,null,null,null,null,"　取組の内容：",null,null,null,null,null,null,null,null,null,null,null,null,null,null,null,null,null,{"$f":"IF(ISBLANK(入力３!H38),\"\",入力３!H38)","v":""},null,null,null,null,null,null,null,null,null,null,null,null,null,null,"今後の計画：",null,null,null,null,null,null,null,null,null,null,null,null,null,null,{"$f":"IF(ISBLANK(入力３!H39),\"\",入力３!H39)","v":""},null,null,null,null,null,null,null,null,null,null,null,null,null,"植林面積",null,null,null,null,null,null,null,null,null,null,null,{"$f":"IF(ISBLANK(入力３!H40),\"\",入力３!H40)","v":""},null,null,null,null,null,null,null,null,null,null,null,null,null,"㎡)",null,null,null,null,null,{"$f":"IF(ISBLANK(入力３!J41),\"\",入力３!J41)","v":""},null,null,null,null,null,null,null,null,null,null,null,null,null,null,null,null,null,"㎥／年"]
[null,null,null,null,null,null,null,null,null,null,null,null,null,null,null,null,null,null,null,null,null,null,null,null,null,null,null,null,null,"□水田湛水　　　　　　　　　　　　　（地域名：　　　　",null,null,null,null,null,null,null,null,null,null,null,null,null,null,null,null,null,null,null,null,null,null,null,null,null,null,null,null,null,null,null,null,"(地域名:",null,null,null,null,null,null,null,null,null,null,null,null,{"$f":"作業表!F10","v":"　"}]
[null,null,null,null,null,null,null,null,null,null,null,null,null,null,null,null,null,null,null,null,null,null,null,null,null,null,null,null,null,null,null,null,null,null,null,null,null,null,null,null,null,null,null,null,null,null,null,null,null,null,null,null,null,null,null,null,null,null,null,null,null,null,null,null,null,null,null,null,null,null,null,null,null,null,null,null,null,null,null,null,null,null,null,null,null,null,null,null,null,null,null,null,null,null,null,"期間",null,null,null,null,null,null,null,{"$f":"IF(ISBLANK(入力３!H43),\"\",入力３!H43)","v":""},null,null,null,null,null,null,null,null,null,null,null,null,null,"月"]
[null,null,null,null,null,null,null,null,null,null,null,null,null,null,null,null,null,null,null,null,null,null,null,null,null,null,null,null,null,null,null,null,null,null,null,null,null,null,null,null,null,null,null,null,null,null,null,null,null,null,null,null,null,null,null,null,null,null,null,null,null,null,null,null,null,null,null,null,null,null,null,null,null,null,null,null,null,null,null,null,null,null,null,null,null,null,null,null,null,null,null,null,null,null,null,"面積",null,null,null,null,null,null,null,{"$f":"IF(ISBLANK(入力３!H44),\"\",入力３!H44)","v":""},null,null,null,null,null,null,null,null,null,null,null,null,null,"㎡)",null,null,null,null,null,{"$f":"IF(ISBLANK(入力３!J45),\"\",入力３!J45)","v":""},null,null,null,null,null,null,null,null,null,null,null,null,null,null,null,null,null,"㎥／年"]
[null,null,null,null,null,null,null,null,null,null,null,null,null,null,null,null,null,null,null,null,null,null,null,null,null,null,null,null,null,"□米等の契約栽培",null,null,null,null,null,null,null,null,null,null,null,null,null,null,null,null,null,null,null,null,null,null,null,null,null,null,null,null,null,null,null,null,"(地域名:",null,null,null,null,null,null,null,null,null,null,null,null,{"$f":"作業表!F11","v":"　"}]
[null,null,null,null,null,null,null,null,null,null,null,null,null,null,null,null,null,null,null,null,null,null,null,null,null,null,null,null,null,null,null,null,null,null,null,null,null,null,null,null,null,null,null,null,null,null,null,null,null,null,null,null,null,null,null,null,null,null,null,null,null,null,null,"面積:",null,null,null,null,null,null,null,{"$f":"IF(ISBLANK(入力３!H47),\"\",入力３!H47)","v":""},null,null,null,null,null,null,null,null,null,null,null,null,null,"㎡",null,null,null,null,null,"収穫量",null,null,null,null,null,null,null,null,null,null,null,{"$f":"IF(ISBLANK(入力３!H48),\"\",入力３!H48)","v":""},null,null,null,null,null,null,null,null,null,null,null,null,null,"kg)",null,null,null,null,null,{"$f":"IF(ISBLANK(入力３!J49),\"\",入力３!J49)","v":""},null,null,null,null,null,null,null,null,null,null,null,null,null,null,null,null,null,"㎥／年"]
[null,null,null,null,null,null,null,null,null,null,null,null,null,null,null,null,null,null,null,null,null,null,null,null,null,null,null,null,null,"□その他",null,null,null,null,null,null,null,null,null,null,null,null,null,null,null,null,null,null,null,null,null,null,null,null,null,null,null,null,null,null,null,null,null,null,null,null,null,null,null,null,null,null,null,null,null,null,null,null,null,null,null,null,null,null,null,null,null,null,null,null,null,null,null,null,null,null,null,null,null,null,null,null,null,null,null,null,null,null,null,null,null,null,null,null,null,null,null,null,null,null,null,null,null,{"$f":"IF(ISBLANK(入力３!J50),\"\",入力３!J50)","v":""},null,null,null,null,null,null,null,null,null,null,null,null,null,null,null,null,null,"㎥／年"]
[null,null,null,null,null,null,null,null,null,null,null,null,null,null,null,null,null,null,null,null,null,null,null,null,null,null,null,null,null,"小　　　計　　　②",null,null,null,null,null,null,null,null,null,null,null,null,null,null,null,null,null,null,null,null,null,null,null,null,null,null,null,null,null,null,null,null,null,null,null,null,null,null,null,null,null,null,null,null,null,null,null,null,null,null,null,null,null,null,null,null,null,null,null,null,null,null,null,null,null,null,null,null,null,null,null,null,null,null,null,null,null,null,null,null,null,null,null,null,null,null,null,null,null,null,null,null,null,{"$f":"IF(ISBLANK(入力３!J51),\"\",入力３!J51)","v":""},null,null,null,null,null,null,null,null,null,null,null,null,null,null,null,null,null,"㎥／年"]
["その他③",null,null,null,null,null,null,null,null,null,null,null,null,null,null,null,null,null,null,null,null,null,null,null,null,null,null,null,null,"□涵養対策に関する行事への参加等",null,null,null,null,null,null,null,null,null,null,null,null,null,null,null,null,null,null,null,null,null,null,null,null,null,null,null,null,null,null,null,null,null,null,null,null,null,null,null,null,null,null,null,null,null,null,null,null,null,null,null,null,null,null,null,null,null,null,null,null,null,null,null,null,null,null,null,null,null,null,null,null,null,null,null,null,null,null,null,null,null,null,null,null,null,null,null,null,null,null,null,null,null,"－"]
[null,null,null,null,null,null,null,null,null,null,null,null,null,null,null,null,null,null,null,null,null,null,null,null,null,null,null,null,null,"（内容：",null,null,null,null,null,null,null,null,null,null,null,{"$f":"IF(ISBLANK(入力３!H52),\"\",入力３!H52)","v":""},null,null,null,null,null,null,null,null,null,null,null,null,null,null,null,null,null,null,null,null,null,null,null,"回数:",null,null,null,null,null,null,null,null,null,{"$f":"IF(ISBLANK(入力３!H53),\"\",入力３!H53)","v":""},null,null,null,null,null,null,null,"回",null,null,null,null,null,"延べ人数",null,null,null,null,null,null,null,null,null,null,null,null,null,null,null,null,{"$f":"IF(ISBLANK(入力３!H54),\"\",入力３!H54)","v":""}]
[null,null,null,null,null,null,null,null,null,null,null,null,null,null,null,null,null,null,null,null,null,null,null,null,null,null,null,null,null,"□涵養域産の作物の購入",null,null,null,null,null,null,null,null,null,null,null,null,null,null,null,null,null,null,null,null,null,null,null,null,null,null,null,null,null,null,null,null,"(地域名:",null,null,null,null,null,null,null,null,null,null,null,null,{"$f":"作業表!F12","v":"　"}]
[null,null,null,null,null,null,null,null,null,null,null,null,null,null,null,null,null,null,null,null,null,null,null,null,null,null,null,null,null,"　　　　　　産地",null,null,null,null,null,null,null,null,null,null,null,null,null,null,null,null,null,null,null,null,null,null,null,null,null,{"$f":"IF(ISBLANK(入力３!H56),\"\",入力３!H56)","v":""},null,null,null,null,null,null,null,null,null,null,null,null,null,null,null,null,null,null,null,"種類",null,null,null,null,null,null,{"$f":"作業表!F13","v":"　"},null,null,null,null,null,null,null,null,null,null,null,null,null,null,null,null,null,null,null,"量",null,null,null,null,{"$f":"IF(ISBLANK(入力３!H58),\"\",入力３!H58)","v":""},null,null,null,null,null,null,null,null,null,"kg)",null,null,null,null,null,{"$f":"IF(ISBLANK(入力３!J59),\"\",入力３!J59)","v":""},null,null,null,null,null,null,null,null,null,null,null,null,null,null,null,null,null,"㎥／年"]
[null,null,null,null,null,null,null,null,null,null,null,null,null,null,null,null,null,null,null,null,null,null,null,null,null,null,null,null,null,"□その他（地下水涵養団体への協力　団体名：",null,null,null,null,null,null,null,null,null,null,null,null,null,null,null,null,null,null,null,null,null,null,null,null,null,null,null,null,null,null,null,null,null,null,null,null,null,null,null,null,null,null,null,null,null,null,null,null,null,null,null,null,null,null,null,null,null,null,null,{"$f":"作業表!F14","v":"　"},null,null,null,null,null,null,null,null,null,null,null,null,null,null,null,null,null,null,null,null,null,null,null,null,null,null,null,null,null,null,")",null,null,{"$f":"IF(ISBLANK(入力３!J63),\"\",入力３!J63)","v":""},null,null,null,null,null,null,null,null,null,null,null,null,null,null,null,null,null,"㎥／年"]
[null,null,null,null,null,null,null,null,null,null,null,null,null,null,null,null,null,null,null,null,null,null,null,null,null,null,null,null,null,"小　　　計　　　③",null,null,null,null,null,null,null,null,null,null,null,null,null,null,null,null,null,null,null,null,null,null,null,null,null,null,null,null,null,null,null,null,null,null,null,null,null,null,null,null,null,null,null,null,null,null,null,null,null,null,null,null,null,null,null,null,null,null,null,null,null,null,null,null,null,null,null,null,null,null,null,null,null,null,null,null,null,null,null,null,null,null,null,null,null,null,null,null,null,null,null,null,null,{"$f":"IF(ISBLANK(入力３!J65),\"\",入力３!J65)","v":""},null,null,null,null,null,null,null,null,null,null,null,null,null,null,null,null,null,"㎥／年"]
["涵養計画量の合計（①＋②＋③）",null,null,null,null,null,null,null,null,null,null,null,null,null,null,null,null,null,null,null,null,null,null,null,null,null,null,null,null,null,null,null,null,null,null,null,null,null,null,null,null,null,null,null,null,null,null,null,null,null,null,null,null,null,null,null,null,null,null,null,null,null,null,null,null,null,null,null,null,null,null,null,null,null,null,null,null,null,null,null,null,null,null,null,null,null,null,null,null,null,null,null,null,null,null,null,null,null,null,null,null,null,null,null,null,null,null,null,null,null,null,null,null,null,null,null,null,null,null,null,null,null,null,{"$f":"IF(ISBLANK(入力３!J66),\"\",入力３!J66)","v":""},null,null,null,null,null,null,null,null,null,null,null,null,null,null,null,null,null,"㎥／年"]
["地下水採取量",null,null,null,null,null,null,null,null,null,null,null,null,null,null,null,null,null,null,null,null,null,null,null,null,null,null,null,null,"④",null,null,null,null,null,null,null,{"$f":"計算表!D50","v":""},null,null,null,null,null,null,null,null,null,null,null,null,null,null,null,null,null,null,null,null,null,null,null,null,null,null,null,null,null,null,null,null,null,"㎥／年",null,null,null,null,null,null,null,"涵養割合（①＋②＋③）÷④",null,null,null,null,null,null,null,null,null,null,null,null,null,null,null,null,null,null,null,null,null,null,null,null,null,null,null,null,null,null,null,null,null,null,null,null,null,null,null,null,null,null,null,{"$f":"計算表!D46","v":""},null,null,null,null,null,null,null,null,null,null,null,null,null,null,null,null,null,"％"]
["特記事項",null,null,null,null,null,null,null,null,null,null,null,null,null,null,null,null,null,null,null,null,null,null,null,null,null,null,null,null,{"$f":"IF(ISBLANK(入力３!D73),\"\",入力３!D73)","v":""}]
[null,null,null,null,null,null,null,null,null,null,null,null,null,null,null,null,null,null,null,null,null,null,null,null,null,null,null,null,null,{"$f":"IF(ISBLANK(入力３!D74),\"\",入力３!D74)","v":""}]
["備考　　1  取組内容に応じて、□にチェックのうえ、その内容等を記入してください。"]
["　　　  2  内容のわかる写真、図面、資料等があれば適宜添付してください。"]

{"sheet":"報告書","index":6,"n_rows":50,"n_cols":147,"rows_kept":50,"cut":false,"hidden":false,"merged":[[9,85,9,91],[41,29,41,54],[13,41,13,44],[13,37,13,40],[13,33,13,36],[5,75,5,84],[11,29,12,101],[13,57,13,60],[13,53,13,56],[13,49,13,52],[9,92,9,121],[41,75,41,81],[41,55,41,74],[40,29,40,61],[31,29,31,61],[33,29,33,94],[34,62,34,74],[34,29,34,61],[22,103,22,116],[29,103,29,122],[24,73,24,81],[24,68,24,72],[24,82,24,86],[24,103,24,116],[42,141,42,148],[43,123,43,140],[43,141,43,148],[44,123,44,140],[44,141,44,148],[42,123,42,140],[11,102,12,123],[14,104,14,108],[11,144,12,148],[44,0,44,122],[41,82,41,101],[42,29,42,88],[42,89,42,119],[42,120,42,122],[43,29,43,122],[38,0,43,28],[40,75,40,122],[40,62,40,74],[27,123,27,140],[22,60,22,67],[22,68,22,78],[18,141,18,148],[19,141,19,148],[20,123,20,140],[46,0,47,28],[45,29,45,36],[45,71,45,78],[45,79,45,122],[45,37,45,70],[47,29,47,148],[45,141,45,148],[45,0,45,28],[46,29,46,148],[45,123,45,140],[41,123,41,140],[41,141,41,148],[41,117,41,122],[41,107,41,116],[41,102,41,106],[11,124,12,143],[39,106,39,122],[40,141,40,148],[40,123,40,140],[35,141,35,148],[35,123,35,140],[34,123,34,140],[34,75,34,122],[32,29,32,94],[28,120,28,122],[28,75,28,87],[28,88,28,119],[28,53,28,74],[31,62,31,74],[31,75,31,122],[22,79,22,86],[22,87,22,92],[28,29,28,52],[23,95,23,102],[0,145,0,148],[0,113,0,116],[0,105,0,108],[0,109,0,112],[0,117,0,128],[0,129,0,132],[0,133,0,136],[0,137,0,140],[4,92,4,105],[0,92,0,104],[0,64,0,79],[0,80,0,83],[0,88,0,91],[0,84,0,87],[0,141,0,144],[39,29,39,40],[39,41,39,64],[39,65,39,74],[39,75,39,82],[39,83,39,88],[9,130,9,145],[9,122,9,129],[20,89,20,94],[24,141,24,148],[20,141,20,148],[35,103,35,116],[35,91,35,102],[35,29,35,62],[18,51,18,60],[35,85,35,90],[18,61,18,100],[17,123,17,148],[35,63,35,70],[35,71,35,84],[11,0,11,7],[12,0,12,7],[11,8,12,28],[13,45,13,48],[38,29,38,122],[4,89,4,91],[5,92,5,148],[5,85,5,91],[1,0,2,148],[3,113,3,144],[7,144,7,147],[7,85,7,91],[7,92,7,143],[38,123,39,148],[39,89,39,105],[22,29,22,59],[24,29,24,50],[24,51,24,54],[24,60,24,67],[23,141,23,148],[24,123,24,140],[35,117,35,122],[22,141,22,148],[9,146,9,148],[28,0,37,28],[36,29,36,122],[36,123,36,140],[36,141,36,148],[37,29,37,122],[37,123,37,140],[37,141,37,148],[13,29,13,32],[10,0,10,148],[14,41,14,44],[15,109,15,148],[13,65,13,68],[13,61,13,64],[14,53,14,56],[14,57,14,60],[14,61,14,64],[15,45,15,48],[14,49,14,52],[14,109,14,148],[34,141,34,148],[19,65,19,74],[20,103,20,116],[19,75,19,84],[19,85,19,102],[13,0,15,28],[13,69,15,101],[15,53,15,64],[15,65,15,68],[15,49,15,52],[14,45,14,48],[14,65,14,68],[14,29,14,32],[14,33,14,36],[14,37,14,40],[15,29,15,32],[15,33,15,36],[15,37,15,40],[15,41,15,44],[17,0,17,28],[17,29,17,122],[18,29,18,50],[18,0,27,28],[19,123,19,140],[18,123,18,140],[19,41,19,50],[26,123,26,140],[26,141,26,148],[18,101,18,122],[21,103,21,116],[22,123,22,140],[23,29,23,50],[24,117,24,122],[20,29,20,61],[27,141,27,148],[27,29,27,122],[25,123,25,140],[25,141,25,148],[23,123,23,140],[23,103,23,116],[24,55,24,59],[21,123,21,140],[21,141,21,148],[24,87,24,102],[23,51,23,94],[30,62,30,76],[30,77,30,90],[29,62,29,74],[29,95,29,102],[29,75,29,94],[25,29,25,41],[25,42,25,122],[26,42,26,122],[26,29,26,41],[28,141,29,148],[28,123,28,140],[29,123,29,140],[32,123,32,140],[31,141,32,148],[19,29,19,40],[19,51,19,64],[22,117,22,122],[23,117,23,122],[19,117,19,122],[20,117,20,122],[21,117,21,122],[20,81,20,88],[19,103,19,116],[20,95,20,102],[21,91,21,102],[21,29,21,90],[20,62,20,69],[20,70,20,80],[22,93,22,102],[30,29,30,46],[30,47,30,61],[29,29,29,43],[29,44,29,61],[33,141,33,148],[30,141,30,148],[33,95,33,102],[33,103,33,116],[33,117,33,122],[30,123,30,140],[31,123,31,140],[33,123,33,140],[32,95,32,102],[32,103,32,116],[32,117,32,122],[30,91,30,102],[30,103,30,116],[30,117,30,122]]}
["別記第22号様式(第18条の2関係)",null,null,null,null,null,null,null,null,null,null,null,null,null,null,null,null,null,null,null,null,null,null,null,null,null,null,null,null,null,null,null,null,null,null,null,null,null,null,null,null,null,null,null,null,null,null,null,null,null,null,null,null,null,null,null,null,null,null,null,null,null,null,null,"提出年度",null,null,null,null,null,null,null,null,null,null,null,null,null,null,null,null,null,null,null,null,null,null,null,null,null,null,null,"市町村",null,null,null,null,null,null,null,null,null,null,null,null,null,null,null,null,null,null,null,null,null,null,null,null,"事業者"]
["地下水涵養計画実施状況報告書"]
[]
[null,null,null,null,null,null,null,null,null,null,null,null,null,null,null,null,null,null,null,null,null,null,null,null,null,null,null,null,null,null,null,null,null,null,null,null,null,null,null,null,null,null,null,null,null,null,null,null,null,null,null,null,null,null,null,null,null,null,null,null,null,null,null,null,null,null,null,null,null,null,null,null,null,null,null,null,null,null,null,null,null,null,null,null,null,null,null,null,null,null,null,null,null,null,null,null,null,null,null,null,null,null,null,null,null,null,null,null,null,null,null,null,null,{"$f":"入力１!R9","v":"平成26年4月1日"}]
[null,null,null,null,null,"熊本県知事　　　　　　　様",null,null,null,null,null,null,null,null,null,null,null,null,null,null,null,null,null,null,null,null,null,null,null,null,null,null,null,null,null,null,null,null,null,null,null,null,null,null,null,null,null,null,null,null,null,null,null,null,null,null,null,null,null,null,null,null,null,null,null,null,null,null,null,null,null,null,null,null,null,null,null,null,null,null,null,null,null,null,null,null,null,null,null,"〒",null,null,{"$f":"IF(ISBLANK(入力１!I12),\"\",入力１!I12)","v":""}]
[null,null,null,null,null,null,null,null,null,null,null,null,null,null,null,null,null,null,null,null,null,null,null,null,null,null,null,null,null,null,null,null,null,null,null,null,null,null,null,null,null,null,null,null,null,null,null,null,null,null,null,null,null,null,null,null,null,null,null,null,null,null,null,null,null,null,null,null,null,null,null,null,null,null,null,"提出者",null,null,null,null,null,null,null,null,null,"住所",null,null,null,null,null,null,{"$f":"IF(ISBLANK(入力１!I13),\"\",入力１!I13)","v":""}]
[null,null,null,null,null,null,null,null,null,null,null,null,null,null,null,null,null,null,null,null,null,null,null,null,null,null,null,null,null,null,null,null,null,null,null,null,null,null,null,null,null,null,null,null,null,null,null,null,null,null,null,null,null,null,null,null,null,null,null,null,null,null,null,null,null,null,null,null,null,null,null,null,null,null,null,"(主たる事務所の所在地) "]
[null,null,null,null,null,null,null,null,null,null,null,null,null,null,null,null,null,null,null,null,null,null,null,null,null,null,null,null,null,null,null,null,null,null,null,null,null,null,null,null,null,null,null,null,null,null,null,null,null,null,null,null,null,null,null,null,null,null,null,null,null,null,null,null,null,null,null,null,null,null,null,null,null,null,null,null,null,null,null,null,null,null,null,null,null,"氏名",null,null,null,null,null,null,{"$f":"IF(ISBLANK(入力１!I11),\"\",入力１!I11)","v":""},null,null,null,null,null,null,null,null,null,null,null,null,null,null,null,null,null,null,null,null,null,null,null,null,null,null,null,null,null,null,null,null,null,null,null,null,null,null,null,null,null,null,null,null,null,null,null,null,null,null,null,"印"]
[null,null,null,null,null,null,null,null,null,null,null,null,null,null,null,null,null,null,null,null,null,null,null,null,null,null,null,null,null,null,null,null,null,null,null,null,null,null,null,null,null,null,null,null,null,null,null,null,null,null,null,null,null,null,null,null,null,null,null,null,null,null,null,null,null,null,null,null,null,null,null,null,null,null,null,"(法人等にあっては名称及び代表者の氏名)"]
[null,null,null,null,null,null,null,null,null,null,null,null,null,null,null,null,null,null,null,null,null,null,null,null,null,null,null,null,null,null,null,null,null,null,null,null,null,null,null,null,null,null,null,null,null,null,null,null,null,null,null,null,null,null,null,null,null,null,null,null,null,null,null,null,null,null,null,null,null,null,null,null,null,null,null,null,null,null,null,null,null,null,null,null,null,"電話",null,null,null,null,null,null,{"$f":"IF(ISBLANK(入力１!I14),\"\",入力１!I14)","v":""},null,null,null,null,null,null,null,null,null,null,null,null,null,null,null,null,null,null,null,null,null,null,null,null,null,null,null,null,null,"担当(　　 　　　",null,null,null,null,null,null,null,{"$f":"IF(ISBLANK(入力１!I15),\"\",入力１!I15)","v":""},null,null,null,null,null,null,null,null,null,null,null,null,null,null,null,")"]
["熊本県地下水保全条例第35条第1項の規定により、地下水涵養計画について、次のとおり提出します。"]
["様式",null,null,null,null,null,null,null,"揚水設備の設置場所",null,null,null,null,null,null,null,null,null,null,null,null,null,null,null,null,null,null,null,null,{"$f":"IF(ISBLANK(入力２!I8),\"\",入力２!I8)","v":""},null,null,null,null,null,null,null,null,null,null,null,null,null,null,null,null,null,null,null,null,null,null,null,null,null,null,null,null,null,null,null,null,null,null,null,null,null,null,null,null,null,null,null,null,null,null,null,null,null,null,null,null,null,null,null,null,null,null,null,null,null,null,null,null,null,null,null,null,null,null,null,null,"年間採取量",null,null,null,null,null,null,null,null,null,null,null,null,null,null,null,null,null,null,null,null,null,{"$f":"IF(ISBLANK(入力２!I9),\"\",入力２!I9)","v":""},null,null,null,null,null,null,null,null,null,null,null,null,null,null,null,null,null,null,null,"㎥"]
["09"]
["井戸の番号及び本数（複数ある場合には全て記入）",null,null,null,null,null,null,null,null,null,null,null,null,null,null,null,null,null,null,null,null,null,null,null,null,null,null,null,null,{"$f":"IF(ISBLANK(入力２!I10),\"\",MID(入力２!I10,1,1))","v":""},null,null,null,{"$f":"IF(ISBLANK(入力２!I10),\"\",MID(入力２!I10,2,1))","v":""},null,null,null,{"$f":"IF(ISBLANK(入力２!I10),\"\",MID(入力２!I10,3,1))","v":""},null,null,null,{"$f":"IF(ISBLANK(入力２!I10),\"\",MID(入力２!I10,4,1))","v":""},null,null,null,{"$f":"IF(ISBLANK(入力２!I10),\"\",MID(入力２!I10,5,1))","v":""},null,null,null,{"$f":"IF(ISBLANK(入力２!I13),\"\",MID(入力２!I13,1,1))","v":""},null,null,null,{"$f":"IF(ISBLANK(入力２!I13),\"\",MID(入力２!I13,2,1))","v":""},null,null,null,{"$f":"IF(ISBLANK(入力２!I13),\"\",MID(入力２!I13,3,1))","v":""},null,null,null,{"$f":"IF(ISBLANK(入力２!I13),\"\",MID(入力２!I13,4,1))","v":""},null,null,null,{"$f":"IF(ISBLANK(入力２!I13),\"\",MID(入力２!I13,5,1))","v":""},null,null,null,"地下水の用途"]
[null,null,null,null,null,null,null,null,null,null,null,null,null,null,null,null,null,null,null,null,null,null,null,null,null,null,null,null,null,{"$f":"IF(ISBLANK(入力２!I11),\"\",MID(入力２!I11,1,1))","v":""},null,null,null,{"$f":"IF(ISBLANK(入力２!I11),\"\",MID(入力２!I11,2,1))","v":""},null,null,null,{"$f":"IF(ISBLANK(入力２!I11),\"\",MID(入力２!I11,3,1))","v":""},null,null,null,{"$f":"IF(ISBLANK(入力２!I11),\"\",MID(入力２!I11,4,1))","v":""},null,null,null,{"$f":"IF(ISBLANK(入力２!I11),\"\",MID(入力２!I11,5,1))","v":""},null,null,null,{"$f":"IF(ISBLANK(入力２!I14),\"\",MID(入力２!I14,1,1))","v":""},null,null,null,{"$f":"IF(ISBLANK(入力２!I14),\"\",MID(入力２!I14,2,1))","v":""},null,null,null,{"$f":"IF(ISBLANK(入力２!I14),\"\",MID(入力２!I14,3,1))","v":""},null,null,null,{"$f":"IF(ISBLANK(入力２!I14),\"\",MID(入力２!I14,4,1))","v":""},null,null,null,{"$f":"IF(ISBLANK(入力２!I14),\"\",MID(入力２!I14,5,1))","v":""},null,null,null,null,null,null,null,null,null,null,null,null,null,null,null,null,null,null,null,null,null,null,null,null,null,null,null,null,null,null,null,null,null,null,null,null,null,null,{"$f":"作業表２!E6","v":" "},null,null,null,null,{"$f":"作業表２!F6","v":0}]
[null,null,null,null,null,null,null,null,null,null,null,null,null,null,null,null,null,null,null,null,null,null,null,null,null,null,null,null,null,{"$f":"IF(ISBLANK(入力２!I12),\"\",MID(入力２!I12,1,1))","v":""},null,null,null,{"$f":"IF(ISBLANK(入力２!I12),\"\",MID(入力２!I12,2,1))","v":""},null,null,null,{"$f":"IF(ISBLANK(入力２!I12),\"\",MID(入力２!I12,3,1))","v":""},null,null,null,{"$f":"IF(ISBLANK(入力２!I12),\"\",MID(入力２!I12,4,1))","v":""},null,null,null,{"$f":"IF(ISBLANK(入力２!I12),\"\",MID(入力２!I12,5,1))","v":""},null,null,null,"計",null,null,null,{"$f":"IF(ISBLANK(入力２!I15),\"\",入力２!I15)","v":""},null,null,null,null,null,null,null,null,null,null,null,"本",null,null,null,null,null,null,null,null,null,null,null,null,null,null,null,null,null,null,null,null,null,null,null,null,null,null,null,null,null,null,null,null,null,null,null,null,null,null,null,null,null,null,null,{"$f":"IF(ISBLANK(入力２!V16),\"\",\"(\"&入力２!V16&\")\")","v":""}]
[]
["涵養の方策",null,null,null,null,null,null,null,null,null,null,null,null,null,null,null,null,null,null,null,null,null,null,null,null,null,null,null,null,"項目及び内容",null,null,null,null,null,null,null,null,null,null,null,null,null,null,null,null,null,null,null,null,null,null,null,null,null,null,null,null,null,null,null,null,null,null,null,null,null,null,null,null,null,null,null,null,null,null,null,null,null,null,null,null,null,null,null,null,null,null,null,null,null,null,null,null,null,null,null,null,null,null,null,null,null,null,null,null,null,null,null,null,null,null,null,null,null,null,null,null,null,null,null,null,null,"涵養実施量"]
["敷地内における涵養\n(雨水の地下浸透)①",null,null,null,null,null,null,null,null,null,null,null,null,null,null,null,null,null,null,null,null,null,null,null,null,null,null,null,null,"□雨水浸透ます　",null,null,null,null,null,null,null,null,null,null,null,null,null,null,null,null,null,null,null,null,null,{"$f":"IF(ISBLANK(入力４!H6),\"\",入力４!H6)","v":""},null,null,null,null,null,null,null,null,null,"基、ますの大きさ　　（種類：",null,null,null,null,null,null,null,null,null,null,null,null,null,null,null,null,null,null,null,null,null,null,null,null,null,null,null,null,null,null,null,null,null,null,null,null,null,null,null,{"$f":"作業表２!F7","v":"　"}]
[null,null,null,null,null,null,null,null,null,null,null,null,null,null,null,null,null,null,null,null,null,null,null,null,null,null,null,null,null," : 内径",null,null,null,null,null,null,null,null,null,null,null,{"$f":"IF(ISBLANK(入力４!H7),\"\",入力４!H7)","v":""},null,null,null,null,null,null,null,null,null,"㎝、深さ",null,null,null,null,null,null,null,null,null,null,null,null,null,{"$f":"IF(ISBLANK(入力４!H8),\"\",入力４!H8)","v":""},null,null,null,null,null,null,null,null,null,"㎝、",null,null,null,null,null,null,null,null,null,"屋根面積",null,null,null,null,null,null,null,null,null,null,null,null,null,null,null,null,null,{"$f":"IF(ISBLANK(入力４!H9),\"\",入力４!H9)","v":""},null,null,null,null,null,null,null,null,null,null,null,null,null,"㎡)",null,null,null,null,null,{"$f":"IF(ISBLANK(入力４!J11),\"\",入力４!J11)","v":""},null,null,null,null,null,null,null,null,null,null,null,null,null,null,null,null,null,"㎥／年"]
[null,null,null,null,null,null,null,null,null,null,null,null,null,null,null,null,null,null,null,null,null,null,null,null,null,null,null,null,null,"□雨水浸透トレンチ（内径",null,null,null,null,null,null,null,null,null,null,null,null,null,null,null,null,null,null,null,null,null,null,null,null,null,null,null,null,null,null,null,null,{"$f":"IF(ISBLANK(入力４!H12),\"\",入力４!H12)","v":""},null,null,null,null,null,null,null,"㎝、長さ",null,null,null,null,null,null,null,null,null,null,{"$f":"IF(ISBLANK(入力４!H13),\"\",入力４!H13)","v":""},null,null,null,null,null,null,null,"ｍ、",null,null,null,null,null,"面積",null,null,null,null,null,null,null,{"$f":"IF(ISBLANK(入力４!H14),\"\",入力４!H14)","v":""},null,null,null,null,null,null,null,null,null,null,null,null,null,"㎡)",null,null,null,null,null,{"$f":"IF(ISBLANK(入力４!J15),\"\",入力４!J15)","v":""},null,null,null,null,null,null,null,null,null,null,null,null,null,null,null,null,null,"㎥／年"]
[null,null,null,null,null,null,null,null,null,null,null,null,null,null,null,null,null,null,null,null,null,null,null,null,null,null,null,null,null,"□透水性舗装又は緑化ブロック　　　　　　",null,null,null,null,null,null,null,null,null,null,null,null,null,null,null,null,null,null,null,null,null,null,null,null,null,null,null,null,null,null,null,null,null,null,null,null,null,null,null,null,null,null,null,null,null,null,null,null,null,null,null,null,null,null,null,null,null,null,null,null,null,"（面積",null,null,null,null,null,null,null,null,null,null,null,{"$f":"IF(ISBLANK(入力４!H16),\"\",入力４!H16)","v":""},null,null,null,null,null,null,null,null,null,null,null,null,null,"㎡)",null,null,null,null,null,{"$f":"IF(ISBLANK(入力４!J17),\"\",入力４!J17)","v":""},null,null,null,null,null,null,null,null,null,null,null,null,null,null,null,null,null,"㎥／年"]
[null,null,null,null,null,null,null,null,null,null,null,null,null,null,null,null,null,null,null,null,null,null,null,null,null,null,null,null,null,"□雨水浸透側溝（深さ　m、長さ　m、　　　　面積",null,null,null,null,null,null,null,null,null,null,null,null,null,null,null,null,null,null,null,null,null,null,null,null,null,null,null,null,null,null,{"$f":"IF(ISBLANK(入力４!H18),\"\",入力４!H18)","v":""},null,null,null,null,null,null,null,"ｍ、長さ",null,null,null,null,null,null,null,null,null,null,{"$f":"IF(ISBLANK(入力４!H19),\"\",入力４!H19)","v":""},null,null,null,null,null,null,null,"ｍ、",null,null,null,null,null,"面積",null,null,null,null,null,null,null,null,null,{"$f":"IF(ISBLANK(入力４!H20),\"\",入力４!H20)","v":""},null,null,null,null,null,null,null,null,null,null,null,null,null,"㎡)",null,null,null,null,null,{"$f":"IF(ISBLANK(入力４!J21),\"\",入力４!J21)","v":""},null,null,null,null,null,null,null,null,null,null,null,null,null,null,null,null,null,"㎥／年"]
[null,null,null,null,null,null,null,null,null,null,null,null,null,null,null,null,null,null,null,null,null,null,null,null,null,null,null,null,null,"□緑地等（形態",null,null,null,null,null,null,null,null,null,null,null,null,null,null,null,null,null,null,null,null,null,{"$f":"IF(ISBLANK(入力４!H22),\"\",入力４!H22)","v":""},null,null,null,null,null,null,null,null,null,null,null,null,null,null,null,null,null,null,null,null,null,null,null,null,null,null,null,null,null,null,null,null,null,null,null,null,null,null,null,null,null,null,null,"面積",null,null,null,null,null,null,null,{"$f":"IF(ISBLANK(入力４!H23),\"\",入力４!H23)","v":""},null,null,null,null,null,null,null,null,null,null,null,null,null,"㎡)",null,null,null,null,null,{"$f":"IF(ISBLANK(入力４!J24),\"\",入力４!J24)","v":""},null,null,null,null,null,null,null,null,null,null,null,null,null,null,null,null,null,"㎥／年"]
[null,null,null,null,null,null,null,null,null,null,null,null,null,null,null,null,null,null,null,null,null,null,null,null,null,null,null,null,null,"□浸透型調整池",null,null,null,null,null,null,null,null,null,null,null,null,null,null,null,null,null,null,null,null,null,"(縦",null,null,null,{"$f":"IF(ISBLANK(入力４!H25),\"\",入力４!H25)","v":""},null,null,null,null,"m、横",null,null,null,null,null,null,null,{"$f":"IF(ISBLANK(入力４!H26),\"\",入力４!H26)","v":""},null,null,null,null,"m、深さ",null,null,null,null,null,null,null,null,{"$f":"IF(ISBLANK(入力４!H27),\"\",入力４!H27)","v":""},null,null,null,null,"m、 集水面積",null,null,null,null,null,null,null,null,null,null,null,null,null,null,null,{"$f":"IF(ISBLANK(入力４!H28),\"\",入力４!H28)","v":""},null,null,null,null,null,null,null,null,null,null,null,null,null,"㎡)",null,null,null,null,null,{"$f":"IF(ISBLANK(入力４!J29),\"\",入力４!J29)","v":""},null,null,null,null,null,null,null,null,null,null,null,null,null,null,null,null,null,"㎥／年"]
[null,null,null,null,null,null,null,null,null,null,null,null,null,null,null,null,null,null,null,null,null,null,null,null,null,null,null,null,null,"□その他",null,null,null,null,null,null,null,null,null,null,null,null,{"$f":"IF(ISBLANK(入力４!E30),\"\",入力４!E30)","v":""},null,null,null,null,null,null,null,null,null,null,null,null,null,null,null,null,null,null,null,null,null,null,null,null,null,null,null,null,null,null,null,null,null,null,null,null,null,null,null,null,null,null,null,null,null,null,null,null,null,null,null,null,null,null,null,null,null,null,null,null,null,null,null,null,null,null,null,null,null,null,null,null,null,null,null,null,null,null,null,null,{"$f":"IF(ISBLANK(入力４!J30),\"\",入力４!J30)","v":""},null,null,null,null,null,null,null,null,null,null,null,null,null,null,null,null,null,"㎥／年"]
[null,null,null,null,null,null,null,null,null,null,null,null,null,null,null,null,null,null,null,null,null,null,null,null,null,null,null,null,null,null,null,null,null,null,null,null,null,null,null,null,null,null,{"$f":"IF(ISBLANK(入力４!E31),\"\",入力４!E31)","v":""},null,null,null,null,null,null,null,null,null,null,null,null,null,null,null,null,null,null,null,null,null,null,null,null,null,null,null,null,null,null,null,null,null,null,null,null,null,null,null,null,null,null,null,null,null,null,null,null,null,null,null,null,null,null,null,null,null,null,null,null,null,null,null,null,null,null,null,null,null,null,null,null,null,null,null,null,null,null,null,null,{"$f":"IF(ISBLANK(入力４!J31),\"\",入力４!J31)","v":""},null,null,null,null,null,null,null,null,null,null,null,null,null,null,null,null,null,"㎥／年"]
[null,null,null,null,null,null,null,null,null,null,null,null,null,null,null,null,null,null,null,null,null,null,null,null,null,null,null,null,null,"小　　　計　　　①",null,null,null,null,null,null,null,null,null,null,null,null,null,null,null,null,null,null,null,null,null,null,null,null,null,null,null,null,null,null,null,null,null,null,null,null,null,null,null,null,null,null,null,null,null,null,null,null,null,null,null,null,null,null,null,null,null,null,null,null,null,null,null,null,null,null,null,null,null,null,null,null,null,null,null,null,null,null,null,null,null,null,null,null,null,null,null,null,null,null,null,null,null,{"$f":"IF(ISBLANK(入力４!J32),\"\",入力４!J32)","v":""},null,null,null,null,null,null,null,null,null,null,null,null,null,null,null,null,null,"㎥／年"]
["敷地外における涵養②",null,null,null,null,null,null,null,null,null,null,null,null,null,null,null,null,null,null,null,null,null,null,null,null,null,null,null,null,"□涵養林の整備（",null,null,null,null,null,null,null,null,null,null,null,null,null,null,null,null,null,null,null,null,null,null,null,{"$f":"作業表２!F8","v":"　"},null,null,null,null,null,null,null,null,null,null,null,null,null,null,null,null,null,null,null,null,null,"、地域名",null,null,null,null,null,null,null,null,null,null,null,null,{"$f":"作業表２!F9","v":"　"},null,null,null,null,null,null,null,null,null,null,null,null,null,null,null,null,null,null,null,null,null,null,null,null,null,null,null,null,null,null,null,")"]
[null,null,null,null,null,null,null,null,null,null,null,null,null,null,null,null,null,null,null,null,null,null,null,null,null,null,null,null,null,"　植林年度：",null,null,null,null,null,null,null,null,null,null,null,null,null,null,{"$f":"IF(ISBLANK(入力４!H35),\"\",入力４!H35)","v":""},null,null,null,null,null,null,null,null,null,null,null,null,null,null,null,null,null,"植林場所：",null,null,null,null,null,null,null,null,null,null,null,null,{"$f":"IF(ISBLANK(入力４!H36),\"\",入力４!H36)","v":""},null,null,null,null,null,null,null,null,null,null,null,null,null,null,null,null,null,null,null,"樹種：",null,null,null,null,null,null,null,{"$f":"IF(ISBLANK(入力４!H37),\"\",入力４!H37)","v":""}]
[null,null,null,null,null,null,null,null,null,null,null,null,null,null,null,null,null,null,null,null,null,null,null,null,null,null,null,null,null,"　取組の内容：",null,null,null,null,null,null,null,null,null,null,null,null,null,null,null,null,null,{"$f":"IF(ISBLANK(入力４!H38),\"\",入力４!H38)","v":""},null,null,null,null,null,null,null,null,null,null,null,null,null,null,"今後の計画：",null,null,null,null,null,null,null,null,null,null,null,null,null,null,{"$f":"IF(ISBLANK(入力４!H39),\"\",入力４!H39)","v":""},null,null,null,null,null,null,null,null,null,null,null,null,null,"植林面積",null,null,null,null,null,null,null,null,null,null,null,{"$f":"IF(ISBLANK(入力４!H40),\"\",入力４!H40)","v":""},null,null,null,null,null,null,null,null,null,null,null,null,null,"㎡)",null,null,null,null,null,{"$f":"IF(ISBLANK(入力４!J41),\"\",入力４!J41)","v":""},null,null,null,null,null,null,null,null,null,null,null,null,null,null,null,null,null,"㎥／年"]
[null,null,null,null,null,null,null,null,null,null,null,null,null,null,null,null,null,null,null,null,null,null,null,null,null,null,null,null,null,"□水田湛水　　　　　　　　　　　　　（地域名：　　　　",null,null,null,null,null,null,null,null,null,null,null,null,null,null,null,null,null,null,null,null,null,null,null,null,null,null,null,null,null,null,null,null,"(地域名:",null,null,null,null,null,null,null,null,null,null,null,null,{"$f":"作業表２!F10","v":"　"}]
[null,null,null,null,null,null,null,null,null,null,null,null,null,null,null,null,null,null,null,null,null,null,null,null,null,null,null,null,null,null,null,null,null,null,null,null,null,null,null,null,null,null,null,null,null,null,null,null,null,null,null,null,null,null,null,null,null,null,null,null,null,null,null,null,null,null,null,null,null,null,null,null,null,null,null,null,null,null,null,null,null,null,null,null,null,null,null,null,null,null,null,null,null,null,null,"期間",null,null,null,null,null,null,null,{"$f":"IF(ISBLANK(入力４!H43),\"\",入力４!H43)","v":""},null,null,null,null,null,null,null,null,null,null,null,null,null,"月"]
[null,null,null,null,null,null,null,null,null,null,null,null,null,null,null,null,null,null,null,null,null,null,null,null,null,null,null,null,null,null,null,null,null,null,null,null,null,null,null,null,null,null,null,null,null,null,null,null,null,null,null,null,null,null,null,null,null,null,null,null,null,null,null,null,null,null,null,null,null,null,null,null,null,null,null,null,null,null,null,null,null,null,null,null,null,null,null,null,null,null,null,null,null,null,null,"面積",null,null,null,null,null,null,null,{"$f":"IF(ISBLANK(入力４!H44),\"\",入力４!H44)","v":""},null,null,null,null,null,null,null,null,null,null,null,null,null,"㎡)",null,null,null,null,null,{"$f":"IF(ISBLANK(入力４!J45),\"\",入力４!J45)","v":""},null,null,null,null,null,null,null,null,null,null,null,null,null,null,null,null,null,"㎥／年"]
[null,null,null,null,null,null,null,null,null,null,null,null,null,null,null,null,null,null,null,null,null,null,null,null,null,null,null,null,null,"□米等の契約栽培",null,null,null,null,null,null,null,null,null,null,null,null,null,null,null,null,null,null,null,null,null,null,null,null,null,null,null,null,null,null,null,null,"(地域名:",null,null,null,null,null,null,null,null,null,null,null,null,{"$f":"作業表２!F11","v":"　"}]
[null,null,null,null,null,null,null,null,null,null,null,null,null,null,null,null,null,null,null,null,null,null,null,null,null,null,null,null,null,null,null,null,null,null,null,null,null,null,null,null,null,null,null,null,null,null,null,null,null,null,null,null,null,null,null,null,null,null,null,null,null,null,null,"面積:",null,null,null,null,null,null,null,{"$f":"IF(ISBLANK(入力４!H47),\"\",入力４!H47)","v":""},null,null,null,null,null,null,null,null,null,null,null,null,null,"㎡",null,null,null,null,null,"収穫量",null,null,null,null,null,null,null,null,null,null,null,{"$f":"IF(ISBLANK(入力４!H48),\"\",入力４!H48)","v":""},null,null,null,null,null,null,null,null,null,null,null,null,null,"kg)",null,null,null,null,null,{"$f":"IF(ISBLANK(入力４!J49),\"\",入力４!J49)","v":""},null,null,null,null,null,null,null,null,null,null,null,null,null,null,null,null,null,"㎥／年"]
[null,null,null,null,null,null,null,null,null,null,null,null,null,null,null,null,null,null,null,null,null,null,null,null,null,null,null,null,null,"□その他",null,null,null,null,null,null,null,null,null,null,null,null,null,null,null,null,null,null,null,null,null,null,null,null,null,null,null,null,null,null,null,null,null,null,null,null,null,null,null,null,null,null,null,null,null,null,null,null,null,null,null,null,null,null,null,null,null,null,null,null,null,null,null,null,null,null,null,null,null,null,null,null,null,null,null,null,null,null,null,null,null,null,null,null,null,null,null,null,null,null,null,null,null,{"$f":"IF(ISBLANK(入力４!J50),\"\",入力４!J50)","v":""},null,null,null,null,null,null,null,null,null,null,null,null,null,null,null,null,null,"㎥／年"]
[null,null,null,null,null,null,null,null,null,null,null,null,null,null,null,null,null,null,null,null,null,null,null,null,null,null,null,null,null,"小　　　計　　　②",null,null,null,null,null,null,null,null,null,null,null,null,null,null,null,null,null,null,null,null,null,null,null,null,null,null,null,null,null,null,null,null,null,null,null,null,null,null,null,null,null,null,null,null,null,null,null,null,null,null,null,null,null,null,null,null,null,null,null,null,null,null,null,null,null,null,null,null,null,null,null,null,null,null,null,null,null,null,null,null,null,null,null,null,null,null,null,null,null,null,null,null,null,{"$f":"IF(ISBLANK(入力４!J51),\"\",入力４!J51)","v":""},null,null,null,null,null,null,null,null,null,null,null,null,null,null,null,null,null,"㎥／年"]
["その他③",null,null,null,null,null,null,null,null,null,null,null,null,null,null,null,null,null,null,null,null,null,null,null,null,null,null,null,null,"□涵養対策に関する行事への参加等",null,null,null,null,null,null,null,null,null,null,null,null,null,null,null,null,null,null,null,null,null,null,null,null,null,null,null,null,null,null,null,null,null,null,null,null,null,null,null,null,null,null,null,null,null,null,null,null,null,null,null,null,null,null,null,null,null,null,null,null,null,null,null,null,null,null,null,null,null,null,null,null,null,null,null,null,null,null,null,null,null,null,null,null,null,null,null,null,null,null,null,null,null,"－"]
[null,null,null,null,null,null,null,null,null,null,null,null,null,null,null,null,null,null,null,null,null,null,null,null,null,null,null,null,null,"（内容：",null,null,null,null,null,null,null,null,null,null,null,{"$f":"IF(ISBLANK(入力４!H52),\"\",入力４!H52)","v":""},null,null,null,null,null,null,null,null,null,null,null,null,null,null,null,null,null,null,null,null,null,null,null,"回数:",null,null,null,null,null,null,null,null,null,{"$f":"IF(ISBLANK(入力４!H53),\"\",入力４!H53)","v":""},null,null,null,null,null,null,null,"回",null,null,null,null,null,"延べ人数",null,null,null,null,null,null,null,null,null,null,null,null,null,null,null,null,{"$f":"IF(ISBLANK(入力４!H54),\"\",入力４!H54)","v":""}]
[null,null,null,null,null,null,null,null,null,null,null,null,null,null,null,null,null,null,null,null,null,null,null,null,null,null,null,null,null,"□涵養域産の作物の購入",null,null,null,null,null,null,null,null,null,null,null,null,null,null,null,null,null,null,null,null,null,null,null,null,null,null,null,null,null,null,null,null,"(地域名:",null,null,null,null,null,null,null,null,null,null,null,null,{"$f":"作業表２!F12","v":"　"}]
[null,null,null,null,null,null,null,null,null,null,null,null,null,null,null,null,null,null,null,null,null,null,null,null,null,null,null,null,null,"　　　　　　産地",null,null,null,null,null,null,null,null,null,null,null,null,null,null,null,null,null,null,null,null,null,null,null,null,null,{"$f":"IF(ISBLANK(入力４!H56),\"\",入力４!H56)","v":""},null,null,null,null,null,null,null,null,null,null,null,null,null,null,null,null,null,null,null,"種類",null,null,null,null,null,null,{"$f":"作業表２!F13","v":"　"},null,null,null,null,null,null,null,null,null,null,null,null,null,null,null,null,null,null,null,"量",null,null,null,null,{"$f":"IF(ISBLANK(入力４!H58),\"\",入力４!H58)","v":""},null,null,null,null,null,null,null,null,null,"kg)",null,null,null,null,null,{"$f":"IF(ISBLANK(入力４!J59),\"\",入力４!J59)","v":""},null,null,null,null,null,null,null,null,null,null,null,null,null,null,null,null,null,"㎥／年"]
[null,null,null,null,null,null,null,null,null,null,null,null,null,null,null,null,null,null,null,null,null,null,null,null,null,null,null,null,null,"□その他（地下水涵養団体への協力　団体名：",null,null,null,null,null,null,null,null,null,null,null,null,null,null,null,null,null,null,null,null,null,null,null,null,null,null,null,null,null,null,null,null,null,null,null,null,null,null,null,null,null,null,null,null,null,null,null,null,null,null,null,null,null,null,null,null,null,null,null,{"$f":"作業表２!F14","v":"　"},null,null,null,null,null,null,null,null,null,null,null,null,null,null,null,null,null,null,null,null,null,null,null,null,null,null,null,null,null,null,")",null,null,{"$f":"IF(ISBLANK(入力４!J63),\"\",入力４!J63)","v":""},null,null,null,null,null,null,null,null,null,null,null,null,null,null,null,null,null,"㎥／年"]
[null,null,null,null,null,null,null,null,null,null,null,null,null,null,null,null,null,null,null,null,null,null,null,null,null,null,null,null,null,"小　　　計　　　③",null,null,null,null,null,null,null,null,null,null,null,null,null,null,null,null,null,null,null,null,null,null,null,null,null,null,null,null,null,null,null,null,null,null,null,null,null,null,null,null,null,null,null,null,null,null,null,null,null,null,null,null,null,null,null,null,null,null,null,null,null,null,null,null,null,null,null,null,null,null,null,null,null,null,null,null,null,null,null,null,null,null,null,null,null,null,null,null,null,null,null,null,null,{"$f":"IF(ISBLANK(入力４!J65),\"\",入力４!J65)","v":""},null,null,null,null,null,null,null,null,null,null,null,null,null,null,null,null,null,"㎥／年"]
["涵養計画量の合計（①＋②＋③）",null,null,null,null,null,null,null,null,null,null,null,null,null,null,null,null,null,null,null,null,null,null,null,null,null,null,null,null,null,null,null,null,null,null,null,null,null,null,null,null,null,null,null,null,null,null,null,null,null,null,null,null,null,null,null,null,null,null,null,null,null,null,null,null,null,null,null,null,null,null,null,null,null,null,null,null,null,null,null,null,null,null,null,null,null,null,null,null,null,null,null,null,null,null,null,null,null,null,null,null,null,null,null,null,null,null,null,null,null,null,null,null,null,null,null,null,null,null,null,null,null,null,{"$f":"IF(ISBLANK(入力４!J66),\"\",入力４!J66)","v":""},null,null,null,null,null,null,null,null,null,null,null,null,null,null,null,null,null,"㎥／年"]
["地下水採取量",null,null,null,null,null,null,null,null,null,null,null,null,null,null,null,null,null,null,null,null,null,null,null,null,null,null,null,null,"④",null,null,null,null,null,null,null,{"$f":"計算表２!D50","v":""},null,null,null,null,null,null,null,null,null,null,null,null,null,null,null,null,null,null,null,null,null,null,null,null,null,null,null,null,null,null,null,null,null,"㎥／年",null,null,null,null,null,null,null,"涵養割合（①＋②＋③）÷④",null,null,null,null,null,null,null,null,null,null,null,null,null,null,null,null,null,null,null,null,null,null,null,null,null,null,null,null,null,null,null,null,null,null,null,null,null,null,null,null,null,null,null,{"$f":"計算表２!D46","v":""},null,null,null,null,null,null,null,null,null,null,null,null,null,null,null,null,null,"％"]
["特記事項",null,null,null,null,null,null,null,null,null,null,null,null,null,null,null,null,null,null,null,null,null,null,null,null,null,null,null,null,{"$f":"IF(ISBLANK(入力４!D73),\"\",入力４!D73)","v":""}]
[null,null,null,null,null,null,null,null,null,null,null,null,null,null,null,null,null,null,null,null,null,null,null,null,null,null,null,null,null,{"$f":"IF(ISBLANK(入力４!D74),\"\",入力４!D74)","v":""}]
["備考　　1  取組内容に応じて、□にチェックのうえ、その内容等を記入してください。"]
["　　　  2  内容のわかる写真、図面、資料等があれば適宜添付してください。"]

{"sheet":"説明２","index":7,"n_rows":33,"n_cols":37,"rows_kept":33,"cut":false,"hidden":false,"merged":[[30,5,30,19],[30,3,30,4],[30,25,30,33],[31,5,31,19],[31,3,31,4],[31,25,31,33],[32,3,32,4],[32,25,32,33],[6,20,31,24],[32,5,32,24],[28,5,28,19],[28,3,28,4],[28,25,28,33],[29,5,29,19],[29,3,29,4],[29,25,29,33],[26,5,26,19],[26,3,26,4],[26,25,26,33],[27,5,27,19],[27,3,27,4],[27,25,27,33],[24,5,24,19],[24,3,24,4],[24,25,24,33],[25,5,25,19],[25,3,25,4],[25,25,25,33],[21,3,21,4],[21,25,21,33],[23,5,23,19],[23,3,23,4],[23,25,23,33],[22,5,22,19],[22,3,22,4],[22,25,22,33],[21,5,21,19],[16,5,16,19],[16,3,16,4],[16,25,16,33],[17,5,20,19],[17,3,17,4],[17,25,17,33],[18,3,18,4],[18,25,18,33],[19,3,19,4],[19,25,19,33],[20,3,20,4],[20,25,20,33],[14,5,14,19],[14,3,14,4],[14,25,14,33],[15,5,15,19],[15,3,15,4],[15,25,15,33],[12,5,12,19],[12,3,12,4],[12,25,12,33],[13,5,13,19],[13,3,13,4],[13,25,13,33],[10,5,10,19],[10,3,10,4],[10,25,10,33],[11,5,11,19],[11,3,11,4],[11,25,11,33],[8,5,8,19],[8,3,8,4],[8,25,8,33],[9,5,9,19],[9,3,9,4],[9,25,9,33],[2,36,2,38],[6,5,6,19],[6,3,7,4],[6,25,6,33],[7,5,7,19],[7,25,7,33],[4,3,5,4],[5,5,5,19],[4,5,4,24],[5,20,5,24],[4,25,5,33]]}
[]
[]
[null,null,null,null,null,"「地域区分ごとの減水深データ」",null,null,null,null,null,null,null,null,null,null,null,null,null,null,null,null,null,null,null,null,null,null,null,null,null,null,null,null,null,null,"別　表"]
[]
[null,null,null,"№",null,"地区名",null,null,null,null,null,null,null,null,null,null,null,null,null,null,null,null,null,null,null,"減水深（㎜/日）"]
[null,null,null,null,null,"水田湛水、米等の契約栽、涵養域産作物(米)の購入",null,null,null,null,null,null,null,null,null,null,null,null,null,null,"涵養林の整備"]
[null,null,null,"1",null,"阿蘇西麓区",null,null,null,null,null,null,null,null,null,null,null,null,null,null,"山地部以外",null,null,null,null,40]
[]
[null,null,null,"2",null,"高遊原東部区",null,null,null,null,null,null,null,null,null,null,null,null,null,null,null,null,null,null,null,40]
[]
[null,null,null,"2-1",null,"上記のうち西原村小森・河原地区",null,null,null,null,null,null,null,null,null,null,null,null,null,null,null,null,null,null,null,70]
[null,null,null,"3",null,"菊鹿盆区",null,null,null,null,null,null,null,null,null,null,null,null,null,null,null,null,null,null,null,20]
[null,null,null,"4",null,"植木台地北部区",null,null,null,null,null,null,null,null,null,null,null,null,null,null,null,null,null,null,null,20]
[null,null,null,"5",null,"菊地台地区",null,null,null,null,null,null,null,null,null,null,null,null,null,null,null,null,null,null,null,30]
[]
[null,null,null,"5-1",null,"上記のうち幾久富・竹迫地区",null,null,null,null,null,null,null,null,null,null,null,null,null,null,null,null,null,null,null,40]
[null,null,null,"6",null,"植木台地南部区",null,null,null,null,null,null,null,null,null,null,null,null,null,null,null,null,null,null,null,20]
[null,null,null,"7",null,"白川中流区",null,null,null,null,null,null,null,null,null,null,null,null,null,null,null,null,null,null,null,"水稲作付"]
[null,null,null,null,null,null,null,null,null,null,null,null,null,null,null,null,null,null,null,null,null,null,null,null,null,75]
[null,null,null,null,null,null,null,null,null,null,null,null,null,null,null,null,null,null,null,null,null,null,null,null,null,"ただし水田湛水事業"]
[null,null,null,"7-1",null,null,null,null,null,null,null,null,null,null,null,null,null,null,null,null,null,null,null,null,null,110]
[null,null,null,"8",null,"高遊原西部区",null,null,null,null,null,null,null,null,null,null,null,null,null,null,null,null,null,null,null,40]
[null,null,null,"9",null,"小山山区",null,null,null,null,null,null,null,null,null,null,null,null,null,null,null,null,null,null,null,30]
[null,null,null,"10",null,"託麻台地北部区",null,null,null,null,null,null,null,null,null,null,null,null,null,null,null,null,null,null,null,30]
[null,null,null,"11",null,"八景水谷区",null,null,null,null,null,null,null,null,null,null,null,null,null,null,null,null,null,null,null,20]
[null,null,null,"12",null,"託麻台地南区",null,null,null,null,null,null,null,null,null,null,null,null,null,null,null,null,null,null,null,30]
[null,null,null,"13",null,"江津湖周辺区",null,null,null,null,null,null,null,null,null,null,null,null,null,null,null,null,null,null,null,20]
[null,null,null,"14",null,"熊本市街南部区",null,null,null,null,null,null,null,null,null,null,null,null,null,null,null,null,null,null,null,20]
[null,null,null,"15",null,"金峰山周縁区",null,null,null,null,null,null,null,null,null,null,null,null,null,null,null,null,null,null,null,20]
[null,null,null,"16",null,"緑川区",null,null,null,null,null,null,null,null,null,null,null,null,null,null,null,null,null,null,null,30]
[null,null,null,"17",null,"熊本平野区",null,null,null,null,null,null,null,null,null,null,null,null,null,null,null,null,null,null,null,20]
[null,null,null,"18",null,"宇土区",null,null,null,null,null,null,null,null,null,null,null,null,null,null,null,null,null,null,null,20]
[null,null,null,"－",null,"山地",null,null,null,null,null,null,null,null,null,null,null,null,null,null,null,null,null,null,null,"－"]

{"sheet":"コード","index":8,"n_rows":28,"n_cols":20,"rows_kept":28,"cut":false,"hidden":false,"merged":[]}
[null,null,"コード表"]
[]
[null,"涵養様式",null,null,null,"地下水の用途",null,null,null,"雨水浸透ますの種類",null,null,null,"水田湛水に係る地域名",null,null,null,"米等の契約栽培、涵養域産作物の購入に係る地域名"]
[null,1,"09","地下水涵養計画書",null,1," ",null,null,1,0,"　",null,1,0,"　",null,1,0,"　"]
[null,2,"10","地下水涵養計画実施状況報告書",null,2,1,"農業用",null,2,0.9,"住宅用",null,2,0.04,"阿蘇西麓",null,2,0.04,"阿蘇西麓"]
[null,null,null,null,null,3,2,"水産養殖用",null,3,0.95,"ビニールハウス用",null,3,0.04,"高遊原東部（西原村小森・西原村河原を除く）",null,3,0.04,"高遊原東部（西原村小森・西原村河原を除く）"]
[null,null,null,null,null,4,3,"工業用",null,null,null,null,null,4,7.0000000000000007E-2,"高遊原東部（西原村小森・西原村河原）",null,4,7.0000000000000007E-2,"高遊原東部（西原村小森・西原村河原）"]
[null,null,null,null,null,5,4,"建築物用",null,"涵養林整備の種類",null,null,null,5,0.02,"菊鹿盆地",null,5,0.02,"菊鹿盆地"]
[null,null,null,null,null,6,5,"水道用",null,1,null,"　",null,6,0.02,"植木台地北部",null,6,0.02,"植木台地北部"]
[null,null,null,null,null,7,6,"家庭用",null,2,1,"植林",null,7,0.03,"菊池台地（幾久冨・竹迫を除く）",null,7,0.03,"菊池台地（幾久冨・竹迫を除く）"]
[null,null,null,null,null,8,7,"その他",null,3,2,"間伐",null,8,0.04,"菊池台地（幾久冨・竹迫）",null,8,0.04,"菊池台地（幾久冨・竹迫）"]
[null,null,null,null,null,null,null,null,null,4,3,"下刈",null,9,0.02,"植木台地南部",null,9,0.02,"植木台地南部"]
[null,null,null,null,null,null,null,null,null,5,4,"その他",null,10,0.11,"白川中流域（水田湛水）",null,10,7.4999999999999997E-2,"白川中流域（水田作付）"]
[null,null,null,null,null,null,null,null,null,null,null,null,null,11,0.04,"高遊原西部",null,11,0.04,"高遊原西部"]
[null,null,null,null,null,null,null,null,null,"涵養林整備の地域",null,null,null,12,0.03,"小山山",null,12,0.03,"小山山"]
[null,null,null,null,null,null,null,null,null,1,0,"　",null,13,0.03,"託麻台地北部",null,13,0.03,"託麻台地北部"]
[null,null,null,null,null,null,null,null,null,2,0.2,"山地部",null,14,0.02,"八景水谷",null,14,0.02,"八景水谷"]
[null,null,null,null,null,null,null,null,null,3,0.5,"山地部以外",null,15,0.03,"託麻台地南部",null,15,0.03,"託麻台地南部"]
[null,null,null,null,null,null,null,null,null,null,null,null,null,16,0.02,"江津湖周辺",null,16,0.02,"江津湖周辺"]
[null,null,null,null,null,null,null,null,null,"購入作物の種類",null,null,null,17,0.02,"熊本市街南部",null,17,0.02,"熊本市街南部"]
[null,null,null,null,null,null,null,null,null,1,null,"　",null,18,0.02,"金峰山周辺",null,18,0.02,"金峰山周辺"]
[null,null,null,null,null,null,null,null,null,2,1,"米",null,19,0.03,"緑川",null,19,0.03,"緑川"]
[null,null,null,null,null,null,null,null,null,3,2,"米以外",null,20,0.02,"熊本平野",null,20,0.02,"熊本平野"]
[null,null,null,null,null,null,null,null,null,null,null,null,null,21,0.02,"宇土",null,21,0.02,"宇土"]
[null,null,null,null,null,null,null,null,null,"団体名",null,null,null,22,0.03,"山地",null,22,0.03,"山地"]
[null,null,null,null,null,null,null,null,null,1,null,"　"]
[null,null,null,null,null,null,null,null,null,2,1,"くまもと地下水財団"]
[null,null,null,null,null,null,null,null,null,3,2,"その他の団体"]

{"sheet":"作業表","index":9,"n_rows":14,"n_cols":10,"rows_kept":14,"cut":false,"hidden":false,"merged":[]}
[]
[null,null,"設定表",null,null,null,null,null,"画面遷移"]
[]
[null,null,"項目名","検索値","返却コード","返却名称","説明",null,"選択項目","設定値"]
[null,null,"涵養様式",1,{"$f":"VLOOKUP(D5,コード!B4:D5,2,1)","v":"09"},{"$f":"VLOOKUP(D5,コード!B4:D5,3,1)","v":"地下水涵養計画書"},"様式番号",null,"地域区分参照",1]
[null,null,"地下水の用途",1,{"$f":"VLOOKUP(D6,コード!F4:H11,2,1)","v":" "},{"$f":"VLOOKUP(D6,コード!F4:H11,3,1)","v":0},"地下水の用途コード"]
[null,null,"雨水浸透ますの種類",1,{"$f":"VLOOKUP(D7,コード!J4:L6,2,1)","v":0},{"$f":"VLOOKUP(D7,コード!J4:L6,3,1)","v":"　"},"雨水浸透ますの種類（係数）"]
[null,null,"涵養林整備の種類",1,{"$f":"VLOOKUP(D8,コード!J9:L13,2,1)","v":0},{"$f":"VLOOKUP(D8,コード!J9:L13,3,1)","v":"　"},"涵養林整備の種類"]
[null,null,"涵養林整備の地域",1,{"$f":"VLOOKUP(D9,コード!J16:L18,2,1)","v":0},{"$f":"VLOOKUP(D9,コード!J16:L18,3,1)","v":"　"},"涵養林整備の地域（係数）"]
[null,null,"水田湛水に係る地域名",1,{"$f":"VLOOKUP(D10,コード!N4:P26,2,1)","v":0},{"$f":"VLOOKUP(D10,コード!N4:P26,3,1)","v":"　"},"水田湛水に係る地域名（係数）"]
[null,null,"米等の契約栽培に係る地域名",1,{"$f":"VLOOKUP(D11,コード!N4:P26,2,1)","v":0},{"$f":"VLOOKUP(D11,コード!N4:P26,3,1)","v":"　"},"米等の契約栽培に係る地域名（係数）"]
[null,null,"涵養域産作物の購入に係る地域名",1,{"$f":"VLOOKUP(D12,コード!R4:T25,2,1)","v":0},{"$f":"VLOOKUP(D12,コード!R4:T26,3,1)","v":"　"},"涵養域産作物の購入に係る地域名(係数)"]
[null,null,"購入作物の種類",1,{"$f":"VLOOKUP(D13,コード!J21:L23,2,1)","v":0},{"$f":"VLOOKUP(D13,コード!J21:L23,3,1)","v":"　"},"購入作物の種類"]
[null,null,"団体名",1,{"$f":"VLOOKUP(D14,コード!J26:L28,2,1)","v":0},{"$f":"VLOOKUP(D14,コード!J26:L28,3,1)","v":"　"},"団体名"]

{"sheet":"計算表","index":10,"n_rows":50,"n_cols":5,"rows_kept":50,"cut":false,"hidden":false,"merged":[]}
[null,null,"計算値","表示値","入力の有無"]
[null,"雨水浸透ます",{"$f":"入力３!H9*1527/1000*作業表!E7","v":0},{"$f":"IF(ISBLANK(入力３!H9),\"\",ROUND(C2,0))","v":""},{"$f":"IF(ISBLANK(入力３!H9),0,1)","v":0}]
[]
[null,"雨水浸透トレンチ",{"$f":"入力３!H14*1527/1000*0.65","v":0},{"$f":"IF(ISBLANK(入力３!H14),\"\",ROUND(C4,0))","v":""},{"$f":"IF(ISBLANK(入力３!H14),0,1)","v":0}]
[]
[null,"透水性舗装",{"$f":"入力３!H16*1969/1000*0.7","v":0},{"$f":"IF(ISBLANK(入力３!H16),\"\",ROUND(C6,0))","v":""},{"$f":"IF(ISBLANK(入力３!H16),0,1)","v":0}]
[]
[null,"雨水浸透側溝",{"$f":"入力３!H20*1527/1000*0.65","v":0},{"$f":"IF(ISBLANK(入力３!H20),\"\",ROUND(C8,0))","v":""},{"$f":"IF(ISBLANK(入力３!H20),0,1)","v":0}]
[]
[null,"緑地等",{"$f":"入力３!H23*1969/1000*0.7","v":0},{"$f":"IF(ISBLANK(入力３!H23),\"\",ROUND(C10,0))","v":""},{"$f":"IF(ISBLANK(入力３!H23),0,1)","v":0}]
[]
[null,"浸透型調整池",{"$f":"入力３!H28*1527/1000*0.65","v":0},{"$f":"IF(ISBLANK(入力３!H28),\"\",ROUND(C12,0))","v":""},{"$f":"IF(ISBLANK(入力３!H28),0,1)","v":0}]
[]
[null,"その他１",null,{"$f":"IF(ISBLANK(入力３!J30),\"\",入力３!J30)","v":""},{"$f":"IF(ISBLANK(入力３!J30),0,1)","v":0}]
[]
[null,"その他２",null,{"$f":"IF(ISBLANK(入力３!J31),\"\",入力３!J31)","v":""},{"$f":"IF(ISBLANK(入力３!J31),0,1)","v":0}]
[]
[null,"小計",null,{"$f":"IF(E18=0,\"\",SUM(D2,D4,D6,D8,D10,D12,D14,D16))","v":""},{"$f":"SUM(E2,E4,E6,E8,E10,E12,E14,E16)","v":0}]
[]
[null,"涵養林の整備",{"$f":"入力３!H40*1969/1000*作業表!E9","v":0},{"$f":"IF(ISBLANK(入力３!H40),\"\",ROUND(C20,0))","v":""},{"$f":"IF(ISBLANK(入力３!H40),0,1)","v":0}]
[]
[null,"水田湛水",{"$f":"入力３!H44*作業表!E10*入力３!H43*30","v":0},{"$f":"IF(AND(ISBLANK(入力３!H43),ISBLANK(入力３!H44)),\"\",ROUND(C22,0))","v":""},{"$f":"IF(AND(ISBLANK(入力３!H43),ISBLANK(入力３!H44)),0,1)","v":0}]
[]
[null,"米等の契約栽培（面積）",{"$f":"入力３!H47*作業表!E11*100","v":0},{"$f":"IF(ISBLANK(入力３!H47),\"\",ROUND(C24,0))","v":""},{"$f":"IF(ISBLANK(入力３!H47),0,1)","v":0}]
[null,"米等の契約栽培（収穫量）",{"$f":"入力３!H48*2*作業表!E11*100","v":0},{"$f":"IF(ISBLANK(入力３!H48),\"\",ROUND(C25,0))","v":""},{"$f":"IF(ISBLANK(入力３!H48),0,1)","v":0}]
[null,"米等の契約栽培の表示値",null,{"$f":"IF(ISBLANK(入力３!H47),計算表!D25,計算表!D24)","v":""}]
[]
[null,"その他１",null,{"$f":"IF(ISBLANK(入力３!J50),\"\",入力３!J50)","v":""},{"$f":"IF(ISBLANK(入力３!J50),0,1)","v":0}]
[]
[null,"小計",null,{"$f":"IF(E30=0,\"\",SUM(D20,D22,D26,D28))","v":""},{"$f":"SUM(E20,E22,E24,E25,E28)","v":0}]
[]
[null,"涵養域産作物の購入（米）",{"$f":"入力３!H58*2*作業表!E12*100","v":0},{"$f":"IF(ISBLANK(入力３!H58),\"\",ROUND(C32,0))","v":""},{"$f":"IF(ISBLANK(入力３!H58),0,1)","v":0}]
[null,"涵養域産作物の購入（米以外）",null,{"$f":"IF(ISBLANK(入力３!J60),\"\",入力３!J60)","v":""},{"$f":"IF(ISBLANK(入力３!J60),0,1)","v":0}]
[null,"涵養域産作物の購入の表示値",null,{"$f":"IF(作業表!E13=0,\"\",IF(作業表!E13=1,D32,D33))","v":""}]
[]
[null,"団体への協力(くまもと～)",{"$f":"入力３!H62/3","v":0},{"$f":"IF(ISBLANK(入力３!H62),\"\",ROUND(C36,0))","v":""},{"$f":"IF(ISBLANK(入力３!H62),0,1)","v":0}]
[null,"団体への協力(その他～)",null,{"$f":"IF(ISBLANK(入力３!J64),\"\",入力３!J64)","v":""},{"$f":"IF(ISBLANK(入力３!J64),0,1)","v":0}]
[null,"団体への協力表示値",null,{"$f":"IF(作業表!E14=0,\"\",IF(作業表!E14=1,D36,D37))","v":""}]
[]
[null,"小計",null,{"$f":"IF(E40=0,\"\",SUM(D34,D38))","v":""},{"$f":"SUM(E32,E33,E36,E37)","v":0}]
[]
[null,"合計",null,{"$f":"IF(E42=0,\"\",SUM(D18,D30,D40))","v":""},{"$f":"SUM(E18,E30,E40)","v":0}]
[]
[null,"涵養割合修正なし",{"$f":"IF(OR(E42=0,入力３!J68=0),0,D42*100/入力３!J68)","v":0},{"$f":"ROUND(C44,1)","v":0}]
[null,"涵養割合修正あり",{"$f":"IF(OR(E42=0,入力３!J69=0,ISBLANK(入力３!J69)),0,D42*100/入力３!J69)","v":0},{"$f":"ROUND(C45,1)","v":0}]
[null,"涵養割合表示値",null,{"$f":"IF(E42=0,\"\",IF(ISBLANK(入力３!J69),D44,D45))","v":""}]
[]
[null,"地下水採取量",{"$f":"入力２!I9","v":0},{"$f":"IF(C48=0,\"\",C48)","v":""}]
[null,"地下水採取量修正あり",{"$f":"入力３!J69","v":0},{"$f":"IF(C49=0,\"\",C49)","v":""}]
[null,"地下水採取量表示値",null,{"$f":"IF(D49=\"\",D48,D49)","v":""}]

{"sheet":"作業表２","index":11,"n_rows":14,"n_cols":7,"rows_kept":14,"cut":false,"hidden":false,"merged":[]}
[]
[null,null,"設定表"]
[]
[null,null,"項目名","検索値","返却コード","返却名称","説明"]
[null,null,"涵養様式",{"$f":"涵養様式","v":1},{"$f":"VLOOKUP(D5,コード!B4:D5,2,1)","v":"09"},{"$f":"VLOOKUP(D5,コード!B4:D5,3,1)","v":"地下水涵養計画書"},"様式番号"]
[null,null,"地下水の用途",{"$f":"地下水の用途","v":1},{"$f":"VLOOKUP(D6,コード!F4:H11,2,1)","v":" "},{"$f":"VLOOKUP(D6,コード!F4:H11,3,1)","v":0},"地下水の用途コード"]
[null,null,"雨水浸透ますの種類",1,{"$f":"VLOOKUP(D7,コード!J4:L6,2,1)","v":0},{"$f":"VLOOKUP(D7,コード!J4:L6,3,1)","v":"　"},"雨水浸透ますの種類（係数）"]
[null,null,"涵養林整備の種類",1,{"$f":"VLOOKUP(D8,コード!J9:L13,2,1)","v":0},{"$f":"VLOOKUP(D8,コード!J9:L13,3,1)","v":"　"},"涵養林整備の種類"]
[null,null,"涵養林整備の地域",1,{"$f":"VLOOKUP(D9,コード!J16:L18,2,1)","v":0},{"$f":"VLOOKUP(D9,コード!J16:L18,3,1)","v":"　"},"涵養林整備の地域（係数）"]
[null,null,"水田湛水に係る地域名",1,{"$f":"VLOOKUP(D10,コード!N4:P26,2,1)","v":0},{"$f":"VLOOKUP(D10,コード!N4:P26,3,1)","v":"　"},"水田湛水に係る地域名（係数）"]
[null,null,"米等の契約栽培に係る地域名",1,{"$f":"VLOOKUP(D11,コード!N4:P26,2,1)","v":0},{"$f":"VLOOKUP(D11,コード!N4:P26,3,1)","v":"　"},"米等の契約栽培に係る地域名（係数）"]
[null,null,"涵養域産作物の購入に係る地域名",1,{"$f":"VLOOKUP(D12,コード!R4:T25,2,1)","v":0},{"$f":"VLOOKUP(D12,コード!R4:T25,3,1)","v":"　"},"涵養域産作物の購入に係る地域名(係数)"]
[null,null,"購入作物の種類",1,{"$f":"VLOOKUP(D13,コード!J21:L23,2,1)","v":0},{"$f":"VLOOKUP(D13,コード!J21:L23,3,1)","v":"　"},"購入作物の種類"]
[null,null,"団体名",1,{"$f":"VLOOKUP(D14,コード!J26:L28,2,1)","v":0},{"$f":"VLOOKUP(D14,コード!J26:L28,3,1)","v":"　"},"団体名"]

{"sheet":"計算表２","index":12,"n_rows":50,"n_cols":5,"rows_kept":50,"cut":false,"hidden":false,"merged":[]}
[null,null,"計算値","表示値","入力の有無"]
[null,"雨水浸透ます",{"$f":"入力４!H9*1527/1000*作業表２!E7","v":0},{"$f":"IF(ISBLANK(入力４!H9),\"\",ROUND(C2,0))","v":""},{"$f":"IF(ISBLANK(入力４!H9),0,1)","v":0}]
[]
[null,"雨水浸透トレンチ",{"$f":"入力４!H14*1527/1000*0.65","v":0},{"$f":"IF(ISBLANK(入力４!H14),\"\",ROUND(C4,0))","v":""},{"$f":"IF(ISBLANK(入力４!H14),0,1)","v":0}]
[]
[null,"透水性舗装",{"$f":"入力４!H16*1969/1000*0.7","v":0},{"$f":"IF(ISBLANK(入力４!H16),\"\",ROUND(C6,0))","v":""},{"$f":"IF(ISBLANK(入力４!H16),0,1)","v":0}]
[]
[null,"雨水浸透側溝",{"$f":"入力４!H20*1527/1000*0.65","v":0},{"$f":"IF(ISBLANK(入力４!H20),\"\",ROUND(C8,0))","v":""},{"$f":"IF(ISBLANK(入力４!H20),0,1)","v":0}]
[]
[null,"緑地等",{"$f":"入力４!H23*1969/1000*0.7","v":0},{"$f":"IF(ISBLANK(入力４!H23),\"\",ROUND(C10,0))","v":""},{"$f":"IF(ISBLANK(入力４!H23),0,1)","v":0}]
[]
[null,"浸透型調整池",{"$f":"入力４!H28*1527/1000*0.65","v":0},{"$f":"IF(ISBLANK(入力４!H28),\"\",ROUND(C12,0))","v":""},{"$f":"IF(ISBLANK(入力４!H28),0,1)","v":0}]
[]
[null,"その他１",null,{"$f":"IF(ISBLANK(入力４!J30),\"\",入力４!J30)","v":""},{"$f":"IF(ISBLANK(入力４!J30),0,1)","v":0}]
[]
[null,"その他２",null,{"$f":"IF(ISBLANK(入力４!J31),\"\",入力４!J31)","v":""},{"$f":"IF(ISBLANK(入力４!J31),0,1)","v":0}]
[]
[null,"小計",null,{"$f":"IF(E18=0,\"\",SUM(D2,D4,D6,D8,D10,D12,D14,D16))","v":""},{"$f":"SUM(E2,E4,E6,E8,E10,E12,E14,E16)","v":0}]
[]
[null,"涵養林の整備",{"$f":"入力４!H40*1969/1000*作業表２!E9","v":0},{"$f":"IF(ISBLANK(入力４!H40),\"\",ROUND(C20,0))","v":""},{"$f":"IF(ISBLANK(入力４!H40),0,1)","v":0}]
[]
[null,"水田湛水",{"$f":"入力４!H44*作業表２!E10*入力４!H43*30","v":0},{"$f":"IF(AND(ISBLANK(入力４!H43),ISBLANK(入力４!H44)),\"\",ROUND(C22,0))","v":""},{"$f":"IF(AND(ISBLANK(入力４!H43),ISBLANK(入力４!H44)),0,1)","v":0}]
[]
[null,"米等の契約栽培（面積）",{"$f":"入力４!H47*作業表２!E11*100","v":0},{"$f":"IF(ISBLANK(入力４!H47),\"\",ROUND(C24,0))","v":""},{"$f":"IF(ISBLANK(入力４!H47),0,1)","v":0}]
[null,"米等の契約栽培（収穫量）",{"$f":"入力４!H48*2*作業表２!E11*100","v":0},{"$f":"IF(ISBLANK(入力４!H48),\"\",ROUND(C25,0))","v":""},{"$f":"IF(ISBLANK(入力４!H48),0,1)","v":0}]
[null,"米等の契約栽培の表示値",null,{"$f":"IF(ISBLANK(入力４!H47),計算表２!D25,計算表２!D24)","v":""}]
[]
[null,"その他１",null,{"$f":"IF(ISBLANK(入力４!J50),\"\",入力４!J50)","v":""},{"$f":"IF(ISBLANK(入力４!J50),0,1)","v":0}]
[]
[null,"小計",null,{"$f":"IF(E30=0,\"\",SUM(D20,D22,D26,D28))","v":""},{"$f":"SUM(E20,E22,E24,E25,E28)","v":0}]
[]
[null,"涵養域産作物の購入（米）",{"$f":"入力４!H58*2*作業表２!E12*100","v":0},{"$f":"IF(ISBLANK(入力４!H58),\"\",ROUND(C32,0))","v":""},{"$f":"IF(ISBLANK(入力４!H58),0,1)","v":0}]
[null,"涵養域産作物の購入（米以外）",null,{"$f":"IF(ISBLANK(入力４!J60),\"\",入力４!J60)","v":""},{"$f":"IF(ISBLANK(入力４!J60),0,1)","v":0}]
[null,"涵養域産作物の購入の表示値",null,{"$f":"IF(作業表２!E13=0,\"\",IF(作業表２!E13=1,D32,D33))","v":""}]
[]
[null,"団体への協力(くまもと～)",{"$f":"入力４!H62/3","v":0},{"$f":"IF(ISBLANK(入力４!H62),\"\",ROUND(C36,0))","v":""},{"$f":"IF(ISBLANK(入力４!H62),0,1)","v":0}]
[null,"団体への協力(その他～)",null,{"$f":"IF(ISBLANK(入力４!J64),\"\",入力４!J64)","v":""},{"$f":"IF(ISBLANK(入力４!J64),0,1)","v":0}]
[null,"団体への協力表示値",null,{"$f":"IF(作業表２!E14=0,\"\",IF(作業表２!E14=1,D36,D37))","v":""}]
[]
[null,"小計",null,{"$f":"IF(E40=0,\"\",SUM(D34,D38))","v":""},{"$f":"SUM(E32,E33,E36,E37)","v":0}]
[]
[null,"合計",null,{"$f":"IF(E42=0,\"\",SUM(D18,D30,D40))","v":""},{"$f":"SUM(E18,E30,E40)","v":0}]
[]
[null,"涵養割合修正なし",{"$f":"IF(OR(E42=0,入力４!J68=0),0,D42*100/入力４!J68)","v":0},{"$f":"ROUND(C44,1)","v":0}]
[null,"涵養割合修正あり",{"$f":"IF(OR(E42=0,入力４!J69=0,ISBLANK(入力４!J69)),0,D42*100/入力４!J69)","v":0},{"$f":"ROUND(C45,1)","v":0}]
[null,"涵養割合表示値",null,{"$f":"IF(E42=0,\"\",IF(ISBLANK(入力４!J69),D44,D45))","v":""}]
[]
[null,"地下水採取量",{"$f":"入力２!I9","v":0},{"$f":"IF(C48=0,\"\",C48)","v":""}]
[null,"地下水採取量修正あり",{"$f":"入力４!J69","v":0},{"$f":"IF(C49=0,\"\",C49)","v":""}]
[null,"地下水採取量表示値",null,{"$f":"IF(D49=\"\",D48,D49)","v":""}]